{"text_format":"1","workbook":"xlsx","n_sheets":2,"sheets":["Spreadsheets","PlotDat2"],"not_rendered":{"charts":0,"images":0,"macros":1,"external_links":0,"defined_names":3,"comments":0,"pivot_tables":0},"unopened":[],"bounds":{"document_bytes":16777216,"sheet_cells":100000,"rows_first":2000,"rows_last":500,"rows_between":2000,"halvings":0,"cell_chars":16384,"cell_head_chars":4096},"cells_cut":0,"cells_raw":0,"read":"whole","date_system":"1900"}

{"sheet":"Spreadsheets","index":0,"n_rows":477,"n_cols":19,"rows_kept":477,"cut":false,"hidden":false,"merged":[]}
["No.","Magazine Reference","No.","Spreadsheet","Microsoft Excel Hyperlink","No.","Negative","Earth","Galaxy","Universe","Ar","Re","Pb","Th",235,238,"Sm","Rb","Lu"]
[1,"Geochimica et Cosmochimica Acta, Vol. 45. pp. 635 to 645, 1981",1,"Pb-206_12","http://www.creationismonline.com/YEC/Lead_206_207.xlsm",1,null,null,null,null,null,null,1,null,null,null,""]
[2,"Journal Of Petrology, 2001, Volume 42, Number 4, Pages 731-763",2,"Iso_Plot_013","http://www.creationismonline.com/YEC/Plot_Index.xlsm",2,null,38,28,21,null,null,1,null,null,37]
[3,"Mineralium Deposita (1999) 34, Pages 273-283",3,"Excellent_04","http://www.creationismonline.com/YEC/Excellent.xlsm",3,null,6,null,null,null,null,2]
[4,"Earth and Planetary Science Letters, Volume 37, 1977, Pages 1-12",4,"Rb-Sr_09","http://www.creationismonline.com/YEC/Rubidium_Strontium_01.xlsm",4,3,11,3,3,null,null,2,9,3,9,null,5]
[5,"http://www.lpi.usra.edu/meetings/lpsc1978/pdf/1289.pdf",5,"Good_12","http://www.creationismonline.com/YEC/Good.xlsm",5,null,10,null,null,null,null,2,2,null,2,4,4]
[6,"Geochimica et Cosmochimica Acta, 1993, Volume 57, Page 1626",6,"Older_8","http://www.creationismonline.com/YEC/Dating_Methods.xlsm",6,null,2,null,null,null,null,2]
[7,"Earth and Planetary Science Letters, 1982, Volume 61, Page 293",7,"Older_7","http://www.creationismonline.com/YEC/Dating_Methods.xlsm",7,null,2,null,null,null,null,2]
[8,"Contribution Mineral Petrology, 2002, Volume 144, Pages 241-253",8,"232_Th_08","http://www.creationismonline.com/YEC/Th-Pb.xlsm",8,null,11,11,11,null,null,3,11]
[9,"International Earth Science, 2002, Volume 91, Pages 406-432",9,"232_Th_10","http://www.creationismonline.com/YEC/Th-Pb.xlsm",9,null,17,3,2,null,null,3,15]
[10,"Earth and Planetary Science Letters 183 (2000) 93-106",10,"Th_232_02","http://www.creationismonline.com/YEC/Research.xlsm",10,null,3,null,null,null,null,3]
[11,"Earth And Planetary Science Letters, 1995, Volume 134, Page 344",11,"Older_3","http://www.creationismonline.com/YEC/Dating_Methods.xlsm",11,null,4,3,1,null,null,4]
[12,"Earth And Planetary Science Letters, 1994, Volume 126, Page 460",12,"Older_2","http://www.creationismonline.com/YEC/Dating_Methods.xlsm",12,null,2,1,1,null,null,4,18]
[13,"Geochimica et Cosmochimica Acta, 1989,  Volume 53, Pages 1583-1595",13,"To_Old_04","http://www.creationismonline.com/YEC/Impossible.xlsm",13,4,7,1,null,null,9,5]
[14,"Journal Analytical Atomic Spectrometry, 2002, Volume 17, Pages 922-928",14,"Excellent_35","http://www.creationismonline.com/YEC/Excellent.xlsm",14,null,26,null,null,null,null,5]
[15,"Journal Of Petrology, April 11, 2012, Pages 1-32",15,"Excellent_39","http://www.creationismonline.com/YEC/Excellent.xlsm",15,null,47,4,4,null,null,5]
[16,"Journal Of Petrology, 2000, Volume 41, Number 6, Pages 759-788",16,"Rb-Sr_36","http://www.creationismonline.com/YEC/Rubidium_Strontium_01.xlsm",16,null,10,5,5,null,null,5,null,null,5]
[17,"www.nature.com/ngeo/journal/v5/n4/extref/ngeo1432-s2.xls",17,"Very_Old_Z","http://www.creationismonline.com/YEC/Very_Old_Z.xls",17,null,5,null,null,null,null,5]
[18,"Geochimica et Cosmochimica Acta, 1989, Volume 53, Page 1591",18,"Older_5","http://www.creationismonline.com/YEC/Dating_Methods.xlsm",18,7,8,2,1,6,null,5]
[19,"Contributions Mineral Petrology (1984) 85, Pages 376-390",19,"Excellent_03","http://www.creationismonline.com/YEC/Excellent.xlsm",19,null,6,null,null,null,null,6]
[20,"Meteoritics & Planetary Science 46, Nr 1, 35-52 (2011)",20,"Pb-206_08","http://www.creationismonline.com/YEC/Lead_206_207.xlsm",20,null,28,3,2,null,null,6,null,10]
[21,"Geochimica et Cosmochimica Acta, Volume 71, 2007, Pages 3656-3671",21,"Rb-Sr_30","http://www.creationismonline.com/YEC/Rubidium_Strontium_01.xlsm",21,null,13,1,1,null,null,6,null,null,5,null,3]
[22,"Journal Of Petrology, 2007, Volume 48, Number 4, Pages 661-692",22,"Rb-Sr_46","http://www.creationismonline.com/YEC/Rubidium_Strontium_01.xlsm",22,null,24,2,null,null,null,6,6,6,6]
[23,"Journal Of Petrology, 1999, Volume 40, Number 9, Pages 1399-1424",23,"Rb-Sr_48","http://www.creationismonline.com/YEC/Rubidium_Strontium_01.xlsm",23,null,15,6,6,null,null,6,6,null,6]
[24,"Canadian Journal Of Earth Science, 1987, Volume 24, Pages 24-30",24,"Rb-Sr_08","http://www.creationismonline.com/YEC/Rubidium_Strontium_02.xlsm",24,null,19,12,12,null,null,6,null,6,6,null,1]
[25,"Journal Of Petrology, 2007, Volume 48, Number 4, Pages 661-692",25,"Iso_Plot_007","http://www.creationismonline.com/YEC/Plot_Index.xlsm",25,null,24,2,null,null,null,6,6,6,6]
[26,"Journal Of Petrology, 1999, Volume 40, Number 9, Pages 1399-1424",26,"Iso_Plot_016","http://www.creationismonline.com/YEC/Plot_Index.xlsm",26,null,15,6,6,null,null,6,6,null,3]
[27,"Chemical Geology, Volume 277 (2010), Pages 227-244",27,"Excellent_44","http://www.creationismonline.com/YEC/Excellent.xlsm",27,null,26,13,10,null,null,7]
[28,"Precambrian Research, 2002, Volume 117, Pages 119 - 143",28,"Iso_Plot_008","http://www.creationismonline.com/YEC/Plot_Index.xlsm",28,null,7,null,null,null,null,7]
[29,"http://petrology.oxfordjournals.org/content/suppl/1999/12/17/40.6.873.DC1/morriso.xls",29,"Very_Old_X","http://www.creationismonline.com/YEC/Very_Old_X.xls",29,null,7,null,null,null,null,7]
[30,"Earth And Planetary Science Letters, Volume 123, 1994, Pages 139-154",30,"GOOD_G","http://www.creationismonline.com/YEC/GOOD.xlsm",30,null,8,null,null,null,null,8]
[31,"Gondwana Research 11 (2007) Page 382-395",31,"Excellent_19","http://www.creationismonline.com/YEC/Excellent.xlsm",31,null,47,null,null,null,null,8]
[32,"Gondwana Research 11 (2007) Page 382-395",32,"Excellent_26","http://www.creationismonline.com/YEC/Excellent.xlsm",32,null,5,null,null,null,null,8]
[33,"Journal Of Petrology, 2001, Volume 42, Number 7, Pages 1387-1400",33,"Rb-Sr_02","http://www.creationismonline.com/YEC/Rubidium_Strontium_02.xlsm",33,null,16,5,null,null,null,8,null,null,8]
[34,"Geochimica et Cosmochimica Acta, 2003, Volume 67, Number 23, Pages 4577-4595",34,"Rb-Sr_06","http://www.creationismonline.com/YEC/Rubidium_Strontium_02.xlsm",34,null,19,5,4,null,null,8,null,6,5]
[35,"Science, Volume 282, 1998, Page 1481",35,"Excellent_31","http://www.creationismonline.com/YEC/Excellent.xlsm",35,null,80,null,null,null,null,9]
[36,"Earth and Planetary Science Letters, 2012, Volume 337-338, Pages 164-173",36,"Excellent_42","http://www.creationismonline.com/YEC/Excellent.xlsm",36,null,14,null,null,null,null,9]
[37,"Earth and Planetary Science Letters 165 (1999) 117-127",37,"Pb_207_08","http://www.creationismonline.com/YEC/Research.xlsm",37,null,9,null,null,null,null,9]
[38,"Earth and Planetary Science Letters 267 (2008) 236-246",38,"Pb_207_10","http://www.creationismonline.com/YEC/Research.xlsm",38,null,9,null,null,null,null,9]
[39,"Earth and Planetary Science Letters, Volume 59, 1982, Pages 327-342",39,"Nd_Sm_02","http://www.creationismonline.com/YEC/Neodymium_Samarium.xlsm",39,null,9,null,null,null,null,9]
[40,"Earth and Planetary Science Letters, Volume 59, 1982, Pages 327-342",40,"Rb-Sr_14","http://www.creationismonline.com/YEC/Rubidium_Strontium_01.xlsm",40,null,9,null,null,null,null,9]
[41,"Geochimica et Cosmochimica Acta, 2006, Volume 70, Pages 4950-4976",41,"Rb-Sr_12","http://www.creationismonline.com/YEC/Rubidium_Strontium_02.xlsm",41,null,9,null,null,null,null,9]
[42,"Chemical Geology 255 (2008) 329-345",42,"Rb-Sr_17","http://www.creationismonline.com/YEC/Rubidium_Strontium_02.xlsm",42,null,9,null,null,null,null,9]
[43,"Precambrian Research, 1988, Volume 38, Pages 147 - 164",43,"Iso_Plot_011","http://www.creationismonline.com/YEC/Plot_Index.xlsm",43,null,9,null,null,null,null,9]
[44,"www.nature.com/ngeo/journal/v5/n4/extref/ngeo1432-s2.xls",44,"Very_Old_A_5","http://www.creationismonline.com/YEC/Very_Old_A_5.xls",44,null,9,null,null,null,null,9]
[45,"Chemical Geology, Volume 162, 2000, Pages 169-191",45,"Future_Ages_09","http://www.creationismonline.com/YEC/Future.xlsm",45,3,11,1,null,null,null,10,null,null,21,null,3]
[46,"Earth And Planetary Science Letters ,Volume 180, 2000, Pages 259-270",46,"GOOD_P","http://www.creationismonline.com/YEC/GOOD.xlsm",46,null,10,null,null,null,null,10]
[47,"Lithology and Mineral Resources, 2011, Volume 46, Number 2, Pages 151-164",47,"232_Th_05","http://www.creationismonline.com/YEC/Th-Pb.xlsm",47,null,25,2,null,null,null,10,8,null,6]
[48,"Contrib Mineral Petrology, 2002, Volume 144, Pages 241-253",48,"232_Th_09","http://www.creationismonline.com/YEC/Th-Pb.xlsm",48,null,28,9,9,null,null,10,10,10,10]
[49,"Earth and Planetary Science Letters, Volume 73, 1985, Pages 269-277",49,"Nd_Sm_03","http://www.creationismonline.com/YEC/Neodymium_Samarium.xlsm",49,null,13,null,null,null,null,10,null,null,3]
[50,"Earth and Planetary Science Letters, Volume 73, 1985, Pages 269-277",50,"Rb-Sr_15","http://www.creationismonline.com/YEC/Rubidium_Strontium_01.xlsm",50,null,13,null,null,null,null,10,null,null,3]
[51,"http://petrology.oxfordjournals.org/content/suppl/2011/05/11/egr022.DC1/Appendix_table_1.xls",51,"Very_Old_F","http://www.creationismonline.com/YEC/Very_Old_F.xls",51,null,10,null,null,null,null,10]
[52,"www.nyecounty.com/RID_data/rid4391.xls",52,"Very_Old_L","http://www.creationismonline.com/YEC/Very_Old_L.xls",52,null,10,null,null,null,null,10]
[53,"Earth and Planetary Science Letters, 1983, Volume 62, pages 132 - 146",53,"BOGARD_C","http://www.creationismonline.com/YEC/Dating_Methods.xlsm",53,null,34,20,20,4,null,10,10,null,10]
[54,"Chemical Geology, Volume 248, 2008, Pages 40-61",54,"Negative_08","http://www.creationismonline.com/YEC/Negative.xlsm",54,2,12,null,null,null,null,11,null,null,1]
[55,"Earth and Planetary Science Letters, Volume 61, 1982, Pages 97- 111",55,"Rb-Sr_12","http://www.creationismonline.com/YEC/Rubidium_Strontium_01.xlsm",55,null,11,null,null,null,null,11]
[56,"www.geology.cwu.edu/facstaff/wendy/ecrafc/Longvalley.xls",56,"Very_Old_K","http://www.creationismonline.com/YEC/Very_Old_K.xls",56,null,11,null,null,null,null,11]
[57,"http://ir.library.oregonstate.edu/xmlui/bitstream/handle/1957/12572/APPENDIX 2 geochem.xls",57,"Very_Old_Q","http://www.creationismonline.com/YEC/Very_Old_Q.xls",57,null,11,null,null,null,null,11]
[58,"Earth and Planetary Science Letters, 1989, Volume 94, Pages 239",58,"Very_Old_A_4","http://www.creationismonline.com/YEC/Very_Old_A_4.xls",58,null,14,3,1,null,null,11,null,null,3]
[59,"Mineralogy and Petrology, 1999, Volume 66, Pages 171-191",59,"Negative_06","http://www.creationismonline.com/YEC/Negative.xlsm",59,null,12,null,null,null,null,12]
[60,"Mineralogy and Petrology (1993) 47, Pages 103-126",60,"Excellent_02","http://www.creationismonline.com/YEC/Excellent.xlsm",60,null,12,null,null,null,null,12]
[61,"Earth and Planetary Science Letters, 47 (1980) Pages 370-382",61,"Excellent_14","http://www.creationismonline.com/YEC/Excellent.xlsm",61,null,57,null,null,null,null,12]
[62,"Geochemistry And Geophysics Geosystems, 2006, Volume 7, Number 8, Pages 1-29",62,"Excellent_21","http://www.creationismonline.com/YEC/Excellent.xlsm",62,null,44,null,null,null,null,12]
[63,"Journal Of Petrology, 1999, Volume 40, Number 4, Pages 525-548",63,"Rb-Sr_40","http://www.creationismonline.com/YEC/Rubidium_Strontium_01.xlsm",63,null,13,null,null,null,null,12,null,null,null,null,10]
[64,"Journal Of Petrology, 2004, Volume 45, Number 3, Pages 555-607",64,"Rb-Sr_45","http://www.creationismonline.com/YEC/Rubidium_Strontium_01.xlsm",64,null,44,13,9,null,null,12,12,6,11]
[65,"http://ees.elsevier.com/lithos/download.aspx?id=48550&guid=fd055aeb-90c3-4095-a14c-c91a93e48fa5&scheme=1",65,"GOOD_H","http://www.creationismonline.com/YEC/GOOD.xlsm",65,null,13,null,null,null,null,13]
[66,"Chemical Geology, Volume 277, 2010, Pages 227-244",66,"GOOD_N","http://www.creationismonline.com/YEC/GOOD.xlsm",66,null,39,14,10,null,null,13,13,null,13]
[67,"Earth and Planetary Science Letters, Volume 319-320, 2012, Pages 197-206",67,"232_Th_02","http://www.creationismonline.com/YEC/Th-Pb.xlsm",67,null,49,23,19,null,null,13,12,12,12]
[68,"Earth and Planetary. Science Letters, 94 (1989) Pages 78-96",68,"Excellent_08","http://www.creationismonline.com/YEC/Excellent.xlsm",68,null,32,null,null,null,null,13]
[69,"Chemical Geology, 93 (1991) Pages 231-243",69,"Excellent_12","http://www.creationismonline.com/YEC/Excellent.xlsm",69,null,39,null,null,null,null,13,null,null,3]
[70,"International Geology Review, Volume 45, 2003, Pages 780-797.",70,"Excellent_43","http://www.creationismonline.com/YEC/Excellent.xlsm",70,null,9,null,null,null,null,13,13]
[71,"Geochimica et Cosmochimica Acta, Vol. 62, No. 21/22, pp. 3527-3540, 1998",71,"Pb-206_13","http://www.creationismonline.com/YEC/Lead_206_207.xlsm",71,null,22,6,null,null,null,13,3,null,5]
[72,"Earth and Planetary Science Letters 319-320 (2012) 197-206",72,"Th_232_01","http://www.creationismonline.com/YEC/Research.xlsm",72,null,35,24,19,null,null,13,11,null,11]
[73,"Journal Of Petrology, 2004, Volume 45, Number 3, Pages 555-607",73,"Iso_Plot_006","http://www.creationismonline.com/YEC/Plot_Index.xlsm",73,null,44,13,9,null,null,13,13,6,12]
[74,"Mereoritics And PIanetary Science, 2000, Volume 35, Pages 341 - 346",74,"Iso_Plot_012","http://www.creationismonline.com/YEC/Plot_Index.xlsm",74,null,26,2,null,null,null,13,null,null,13]
[75,"Earth and Planetary Science Letters, 1983, Volume 62, Pages 132 - 146",75,"Iso_Plot_019","http://www.creationismonline.com/YEC/Plot_Index.xlsm",75,null,10,null,null,null,null,13]
[76,"Meteoritics And Planetary Science, 1998, Volume 33, Pages 641 - 453",76,"Birck","http://www.creationismonline.com/YEC/Dating_Methods.xlsm",76,null,4,1,1,null,null,13]
[77,"Earth And Planetary Science Letters, Volume 337-338, 2012, Pages 164-173",77,"GOOD_A","http://www.creationismonline.com/YEC/GOOD.xlsm",77,null,14,null,null,null,null,14]
[78,"Chinese Journal Of Geochemistry, Volume 16, Number 1, 1997, Pages 80-85",78,"Excellent_05","http://www.creationismonline.com/YEC/Excellent.xlsm",78,null,2,null,null,null,null,14]
[79,"Geochemistry, Geophysics And Geosystems, February 14, 2000",79,"Excellent_41","http://www.creationismonline.com/YEC/Excellent.xlsm",79,null,16,null,null,null,null,14]
[80,"Earth and Planetary Science Letters, 42 (1979) 58-70",80,"Pb-206_06","http://www.creationismonline.com/YEC/Lead_206_207.xlsm",80,null,14,null,null,null,null,14]
[81,"Earth and Planetary Science Letters, Volume 42, 1979, Pages 58-70",81,"Rb-Sr_03","http://www.creationismonline.com/YEC/Rubidium_Strontium_01.xlsm",81,null,26,12,11,null,null,14,null,null,null,null,12]
[82,"Geochimica et Cosmochimica Acta, 2001, Volume 65, Number 4, Pages 571-587",82,"Rb-Sr_29","http://www.creationismonline.com/YEC/Rubidium_Strontium_01.xlsm",82,null,14,null,null,null,null,14]
[83,"Meteoritics & Planetary Science, 2004, Volume 39, Number 12, Pages 2033 - 2041",83,"Iso_Plot_001","http://www.creationismonline.com/YEC/Plot_Index.xlsm",83,null,37,12,6,null,null,14,17,null,8]
[84,"Isotope Geoscience, 1 (1983) Pages 23-38",84,"Excellent_06","http://www.creationismonline.com/YEC/Excellent.xlsm",84,null,16,null,null,null,null,15]
[85,"Journal of Petrology, 2011, Volume 52, Number 2, Pages 401-430",85,"Excellent_36","http://www.creationismonline.com/YEC/Excellent.xlsm",85,null,5,null,null,null,null,15]
[86,"Earth and Planetary Science Letters, Volume 90, 1988, Pages 26-40",86,"Nd_Sm_05","http://www.creationismonline.com/YEC/Neodymium_Samarium.xlsm",86,null,15,null,null,null,null,15]
[87,"Earth and Planetary Science Letters, Volume 90, 1988, Pages 26-40",87,"Rb-Sr_20","http://www.creationismonline.com/YEC/Rubidium_Strontium_01.xlsm",87,null,15,null,null,null,null,15]
[88,"Geochimica et Cosmochimica Acta, 2005, Volume 69, Number 24, Pages 5819-5830",88,"Rb-Sr_07","http://www.creationismonline.com/YEC/Rubidium_Strontium_02.xlsm",88,null,19,null,null,null,null,15,null,1,2,null,1]
[89,"Meteoritics & Planetary Science, 2007, Volume 42, Numbers 7/8, Pages 1337 - 1350",89,"Iso_Plot_002","http://www.creationismonline.com/YEC/Plot_Index.xlsm",89,null,16,null,null,null,null,15,null,null,1]
[90,"Geochemica Et Cosmochemica Acta, 2003, Volume 67, Number 6, Pages 1145 - 1176",90,"Amelin_G","http://www.creationismonline.com/YEC/Dating_Methods.xlsm",90,32,null,null,null,null,null,15]
[91,"Contributions Mineral Petrology (1985) 90, Pages 162-171",91,"Excellent_01","http://www.creationismonline.com/YEC/Excellent.xlsm",91,null,16,null,null,null,null,16]
[92,"Earth and Planetary Science Letters, 59 (1982) Pages 327-342",92,"Excellent_32","http://www.creationismonline.com/YEC/Excellent.xlsm",92,null,9,null,null,null,null,16," "]
[93,"Journal Of Petrology, 1997, Volume 38, Number 1, Pages 115-132",93,"Rb-Sr_34","http://www.creationismonline.com/YEC/Rubidium_Strontium_01.xlsm",93,null,32,null,null,null,null,16,11,null,6,null,6]
[94,"Journal Of Petrology, 1997, Volume 38, Number 1, Pages 115-132",94,"Iso_Plot_017","http://www.creationismonline.com/YEC/Plot_Index.xlsm",94,null,33,1,null,null,null,16,11,null,7]
[95,"http://petrology.oxfordjournals.org/content/suppl/2006/12/23/egl053.DC1/Electronic_Appendices_1-5.xls",95,"Very_Old_N","http://www.creationismonline.com/YEC/Very_Old_N.xls",95,null,16,null,null,null,null,16]
[96,"Geochimica et Cosmochimica Acta, Vol. 61, No. 23, pp. 5005-5022, 1997",96,"Pb-206_17","http://www.creationismonline.com/YEC/Lead_206_207.xlsm",96,null,19,null,null,null,null,17]
[97,"Earth and Planetary Science Letters 245 (2006) 743-761",97,"Pb_207_03","http://www.creationismonline.com/YEC/Research.xlsm",97,null,17,null,null,null,null,17]
[98,"Journal Of Petrology, 1998, Volume 39, Number 5, Pages 859-880 ",98,"Nd_Sm_12","http://www.creationismonline.com/YEC/Neodymium_Samarium.xlsm",98,13,21,3,3,null,null,17,null,null,null,null,17]
[99,"Journal Of Petrology, 1998, Volume 39, Number 5, Pages 859-880 ",99,"Rb-Sr_42","http://www.creationismonline.com/YEC/Rubidium_Strontium_01.xlsm",99,13,21,null,3,null,null,17,null,null,null,null,17]
[100,"Geochimica et Cosmochimica Acta, 2008, Volume 72, Pages 2067 - 2089",100,"Rb-Sr_50","http://www.creationismonline.com/YEC/Rubidium_Strontium_01.xlsm",100,3,36,11,9,null,null,17,6,null,22]
[101,"Journal Of Petrology, 2010, Volume 51, Number 7, Pages 1417-1445",101,"Rb-Sr_10","http://www.creationismonline.com/YEC/Rubidium_Strontium_02.xlsm",101,null,17,null,null,null,null,17]
[102,"http://petrology.oxfordjournals.org/content/suppl/2004/04/19/45.5.1069.DC1/egh004supp.xls",102,"Very_Old_U","http://www.creationismonline.com/YEC/Very_Old_U.xls",102,null,17,null,null,null,null,17]
[103,"Geochimica et Cosmochimica Acta, 2010, Volume 74, Pages 1417-1435",103,"Thorium_B","http://www.creationismonline.com/YEC/Th-Pb.xlsm",103,null,20,1,1,null,null,17,2,null,1]
[104,"Lithos, Volume 77, 2004, Pages 453-472",104,"Negative_19","http://www.creationismonline.com/YEC/Negative.xlsm",104,16,22,2,2,null,8,18,null,null,null,7,null,6]
[105,"Chemical Geology 233 (2006) Pages 1-45",105,"Excellent_09","http://www.creationismonline.com/YEC/Excellent.xlsm",105,null,13,null,null,null,null,18]
[106,"Precambrian Research 72 ( 1995 ) 247-261",106,"U_238_01","http://www.creationismonline.com/YEC/Research.xlsm",106,null,18,null,null,null,null,18]
[107,"Geochimica et Cosmochimica Acta, 2002, Volume 66, Number 10, Pages 1821-1837",107,"Rb-Sr_05","http://www.creationismonline.com/YEC/Rubidium_Strontium_02.xlsm",107,8,18,null,null,null,null,18,null,null,null,null,11]
[108,"http://petrology.oxfordjournals.org/content/suppl/2007/08/13/egm050v1.DC1/jpet-jul-07-0104-File002.xls",108,"Very_Old_W","http://www.creationismonline.com/YEC/Very_Old_W.xls",108,null,18,null,null,null,null,18]
[109,"www.geokem.com/files/Av-Andesite2.xls",109,"Very_Old_A_1","http://www.creationismonline.com/YEC/Very_Old_A_1.xls",109,null,18,null,null,null,null,18]
[110,"Geochimica et Cosmochimica Acta, 1992, Volume 56, Pages 1673-1694",110,"Nd_Sm_15","http://www.creationismonline.com/YEC/Neodymium_Samarium.xlsm",110,null,15,null,null,null,null,19]
[111,"Journal Of Petrology, 2010, Volume 51, Number 10, Pages 2003-2045",111,"Rb-Sr_39","http://www.creationismonline.com/YEC/Rubidium_Strontium_01.xlsm",111,null,38,null,null,null,null,19,19,1,1]
[112,"Precambrian Research, 1999, Volume 95, Pages 167 - 185",112,"Iso_Plot_010","http://www.creationismonline.com/YEC/Plot_Index.xlsm",112,null,19,null,null,null,null,19]
[113,"Geochimica et Cosmochimica Acta, 2008, Volume 72, Pages 2067 - 2089",113,"Iso_Plot_018","http://www.creationismonline.com/YEC/Plot_Index.xlsm",113,null,45,16,13,null,null,19,2,null,18]
[114,"http://geosphere.gsapubs.org/content/suppl/2010/09/29/6.5.663.DC1/530_supp1.xls",114,"Very_Old_A","http://www.creationismonline.com/YEC/Very_Old_A.xls",114,null,276,261,253,null,null,19,257,null,19]
[115,"Geochimica et Cosmochimica Acta, 1995, Volume 59, Number 11, Pages 2319-2329",115,"Thorium_E","http://www.creationismonline.com/YEC/Th-Pb.xlsm",115,null,63,32,30,null,null,19,16,null,15]
[116,"Earth and Planetary Science Letters, 42 (1979) Pages 368-378",116,"Excellent_15","http://www.creationismonline.com/YEC/Excellent.xlsm",116,null,12,null,null,null,null,20]
[117,"Earth and Planetary Science Letters, 42 (1979) Pages 368-378",117,"Excellent_22","http://www.creationismonline.com/YEC/Excellent.xlsm",117,null,76,17,9,null,null,20]
[118,"Geochimica et Cosmochimica Acta, 1956, Volume 10, Pages 230 to 237",118,"Excellent_40","http://www.creationismonline.com/YEC/Excellent.xlsm",118,null,5,null,null,null,null,20]
[119,"Geochimica et Cosmochimica Acta, Vol. 62, No. 16, pp. 2823-2835, 1998",119,"Pb-206_24","http://www.creationismonline.com/YEC/Lead_206_207.xlsm",119,null,10,null,null,null,null,20,null,null,1]
[120,"Earth and Planetary Science Letters 134 (1995) 169-185",120,"Th_232_03","http://www.creationismonline.com/YEC/Research.xlsm",120,null,46,4,1,null,null,20,20,null,6]
[121,"Earth and Planetary Science Letters, Volume 134, 1995, Pages 169-185",121,"Rb-Sr_25","http://www.creationismonline.com/YEC/Rubidium_Strontium_01.xlsm",121,null,46,null,1,null,null,20,20,null,7]
[122,"http://pubs.usgs.gov/of/2008/1142/tables/table04.xls",122,"Very_Old_A_9","http://www.creationismonline.com/YEC/Very_Old_A_9.xls",122,null,57,23,18,null,null,20,20,null,18]
[123,"Geochemistry, Geophysics And Geosystems, Volume 7, Number 11, 2006",123,"GOOD_F","http://www.creationismonline.com/YEC/GOOD.xlsm",123,null,27,null,null,null,null,21,null,6]
[124,"Journal Of Petrology, 2001, Volume 42, Number 1, Pages 159-172",124,"Rb-Sr_16","http://www.creationismonline.com/YEC/Rubidium_Strontium_02.xlsm",124,null,21,null,null,null,null,21]
[125,"Geochemistry And Geophysics Geosystems, 2006, Volume 7, Number 8, Pages 1-29",125,"Excellent_28","http://www.creationismonline.com/YEC/Excellent.xlsm",125,null,6,null,null,null,null,22]
[126,"Geochimica et Cosmochimica Acta, 1992, Vol. 56, pp. 347-368",126,"Pb-206_16","http://www.creationismonline.com/YEC/Lead_206_207.xlsm",126,null,20,null,null,null,null,22]
[127,"Geochimica et Cosmochimica Acta 73 (2009) 469-488",127,"Pb-206_22","http://www.creationismonline.com/YEC/Lead_206_207.xlsm",127,null,23,null,null,null,null,22]
[128,"Earth And Planetary Science Letters, 1972, Volume 14, Pages 281 - 304.",128,"Wasserburg","http://www.creationismonline.com/YEC/Dating_Methods.xlsm",128,null,80,7,3,null,null,22,20,19,19]
[129,"Journal Of Petrology, Volume 0, Number 0, Pages 1-32, 2012 ",129,"GOOD_M","http://www.creationismonline.com/YEC/GOOD.xlsm",129,null,49,4,4,null,null,23,21,null,3]
[130,"Earth and Planetarv Science Letters, 46 (1980) Pages 221-232",130,"Excellent_16","http://www.creationismonline.com/YEC/Excellent.xlsm",130,null,20,null,null,null,null,23]
[131,"Earth and Planetarv Science Letters, 46 (1980) Pages 221-232",131,"Excellent_23","http://www.creationismonline.com/YEC/Excellent.xlsm",131,null,172,null,null,null,null,23]
[132,"Contributions to Mineralogy and Petrology, Volume 114, 1993, Pages 171 - 188",132,"Excellent_29","http://www.creationismonline.com/YEC/Excellent.xlsm",132,null,22,null,null,null,null,23]
[133,"Geochimica et Cosmochimica Acta, 1986, Volume 50, Pages 2571-2585",133,"Nd_Sm_14","http://www.creationismonline.com/YEC/Neodymium_Samarium.xlsm",133,null,20,null,null,null,null,23]
[134,"Geochimica et Cosmochimica Acta, 1993, Volume 57, Pages 4687-4702",134,"Rb-Sr_26","http://www.creationismonline.com/YEC/Rubidium_Strontium_01.xlsm",134,null,72,19,14,null,null,23,24,9,24]
[135,"Journal Of Petrology, 2008, Volume 49, Number 6, Pages 1069-1096",135,"Rb-Sr_33","http://www.creationismonline.com/YEC/Rubidium_Strontium_01.xlsm",135,null,23,null,null,null,null,23]
[136,"Mineralium Deposita (1999) 34, Pages 273-283",136,"Excellent_04","http://www.creationismonline.com/YEC/Excellent.xlsm",136,null,24,null,null,null,null,24]
[137,"Geochimica et Cosmochimica Acta 72 (2008) 5799-5818",137,"Pb-206_23","http://www.creationismonline.com/YEC/Lead_206_207.xlsm",137,null,66,12,7,null,null,25,10,null,6]
[138,"Earth and Planetary Science Letters, Volume 75, 1985, Pages 354-368",138,"Rb-Sr_17","http://www.creationismonline.com/YEC/Rubidium_Strontium_01.xlsm",138,null,35,3,6,null,null,25,null,null,null,null,15]
[139,"Journal Of Geophysical Research, 1981, Volume 86, Number B11, Pages 10663-10680",139,"Rb-Sr_14","http://www.creationismonline.com/YEC/Rubidium_Strontium_02.xlsm",139,null,79,46,32,null,null,25,28,null,26]
[140,"Geological Society Of London, Special Publications, 2004, Volume 229, Pages 133-150.",140,"Excellent_34","http://www.creationismonline.com/YEC/Excellent.xlsm",140,null,26,3,1,null,null,26]
[141,"Earth and Planetary Science Letters, Volume 105, 1991, Pages 149-169",141,"Nd_Sm_07","http://www.creationismonline.com/YEC/Neodymium_Samarium.xlsm",141,24,65,12,9,null,null,26,24,null,16,null,24]
[142,"Earth and Planetary Science Letters, Volume 105, 1991, Pages 149-169",142,"Rb-Sr_22","http://www.creationismonline.com/YEC/Rubidium_Strontium_01.xlsm",142,24,65,12,9,null,null,26,24,null,16,null,24]
[143,"Journal Of Geophysical Research, 1998, Volume 103, Number B9, Pages 20,963-20,979",143,"Nd_Sm_13","http://www.creationismonline.com/YEC/Neodymium_Samarium.xlsm",143,null,56,6,1,null,null,27,22,null,9]
[144,"Journal Of Geophysical Research, 1998, Volume 103, Number B9, Pages 20,963-20,979",144,"Rb-Sr_49","http://www.creationismonline.com/YEC/Rubidium_Strontium_01.xlsm",144,null,56,6,1,null,null,27,22,null,8]
[145,"Geochimica et Cosmochimica Acta, 1976, Volume 40, Pages 635 - 643",145,"Iso_Plot_020","http://www.creationismonline.com/YEC/Plot_Index.xlsm",145,null,25,null,null,null,null,27]
[146,"Geochimica et Cosmochimica Acta, Vol. 63, No. 3/4, pp. 473-488, 1999",146,"Pb-206_14","http://www.creationismonline.com/YEC/Lead_206_207.xlsm",146,null,31,null,null,null,null,28]
[147,"Canadian Journal Of Earth Science, 2006, Volume 43, Pages 1419-1444",147,"Nd_Sm_01","http://www.creationismonline.com/YEC/Neodymium_Samarium.xlsm",147,null,82,39,21,null,null,28,27,null,27]
[148,"Geochimica et Cosmochimica Acta, 1993, Volume 57, Pages 4687-4702",148,"Nd_Sm_09","http://www.creationismonline.com/YEC/Neodymium_Samarium.xlsm",148,null,72,19,14,null,null,28,23,9,24]
[149,"Geochimica et Cosmochimica Acta, 1995, Volume 59, Number 12, Pages 2573-2598",149,"Nd_Sm_17","http://www.creationismonline.com/YEC/Neodymium_Samarium.xlsm",149,null,28,null,null,null,null,28]
[150,"Canadian Journal Of Earth Science, 2006, Volume 43, Pages 1419-1444",150,"Rb-Sr_07","http://www.creationismonline.com/YEC/Rubidium_Strontium_01.xlsm",150,null,82,39,21,null,null,28,27,null,27]
[151,"Geochimica et Cosmochimica Acta, 2001, Volume 65, Number 22, Pages 4243-4255",151,"Rb-Sr_03","http://www.creationismonline.com/YEC/Rubidium_Strontium_02.xlsm",151,null,39,null,null,null,null,28,null,null,11]
[152,"http://petrology.oxfordjournals.org/content/suppl/2007/11/12/egm059.DC1/jpet-jul-07-0097-File018.xls",152,"Very_Old_S","http://www.creationismonline.com/YEC/Very_Old_S.xls",152,null,28,null,null,null,null,28]
[153,"Earth and Planetary Science Letters, Volume 244, 2006, Pages 234-250",153,"Rb-Sr_28","http://www.creationismonline.com/YEC/Rubidium_Strontium_01.xlsm",153,null,28,null,null,null,null,29]
[154,"http://petrology.oxfordjournals.org/content/suppl/2000/06/26/41.7.951.DC1/egd056SUPPLEM.xls",154,"Very_Old_T","http://www.creationismonline.com/YEC/Very_Old_T.xls",154,null,29,null,null,null,null,29]
[155,"Earth and Planetary Science Letters 142 (1996) 501-512",155,"Pb-206_02","http://www.creationismonline.com/YEC/Lead_206_207.xlsm",155,null,30,null,null,null,null,30]
[156,"Precambrian Research 78 (1996) 261-272",156,"Pb_207_15","http://www.creationismonline.com/YEC/Research.xlsm",156,null,30,null,null,null,null,30]
[157,"Journal Of Petrology, 1998, Volume 39, Number 4, Pages 711-748",157,"Rb-Sr_44","http://www.creationismonline.com/YEC/Rubidium_Strontium_01.xlsm",157,null,92,2,2,null,null,30,25,23,17]
[158,"Journal Of Petrology, 1998, Volume 39, Number 4, Pages 711-748",158,"Iso_Plot_005","http://www.creationismonline.com/YEC/Plot_Index.xlsm",158,null,95,2,2,null,null,30,25,28,21]
[159,"Journal Of Geophysical Research, 2011, Volume 116, Page E12008",159,"232_Th_07","http://www.creationismonline.com/YEC/Th-Pb.xlsm",159,null,30,null,null,null,null,31]
[160,"http://petrology.oxfordjournals.org/content/suppl/2011/05/11/egr024.DC1/Suppl_Table_1.xls",160,"Very_Old_P","http://www.creationismonline.com/YEC/Very_Old_P.xls",160,null,31,null,null,null,null,31]
[161,"Chemical Geology 211 (2004) Pages 87-109",161,"Excellent_07","http://www.creationismonline.com/YEC/Excellent.xlsm",161,5,null,null,null,null,null,32]
[162,"Journal Of Petrology, 1998, Volume 39, Number 4, Pages 749-783",162,"Rb-Sr_09","http://www.creationismonline.com/YEC/Rubidium_Strontium_02.xlsm",162,null,33,null,null,null,null,33]
[163,"Earth And Planetary Science Letters 17 (1972) 36-51",163,"Very_Old_15","http://www.creationismonline.com/YEC/Good.xlsm",163,null,98,null,null,null,null,35,21,21,21]
[164,"Geochimica et Cosmochimica Acta, Vol. 61, No. 8, pp. 1713-1731, 1997",164,"Pb-206_15","http://www.creationismonline.com/YEC/Lead_206_207.xlsm",164,null,28,null,null,null,null,36]
[165,"Earth and Planetary Science Letters 296 (2010) 267-277",165,"Pb_207_05","http://www.creationismonline.com/YEC/Research.xlsm",165,null,36,null,null,null,null,36]
[166,"Earth and Planetary Science Letters 245 (2006) 137-152",166,"Pb_207_12","http://www.creationismonline.com/YEC/Research.xlsm",166,null,36,null,null,null,null,36]
[167,"Geochimica et Cosmochimica Acta 73 (2009) 469-488",167,"Thorium_C","http://www.creationismonline.com/YEC/Th-Pb.xlsm",167,null,52,12,7,null,null,36,9,null,5]
[168,"Geochimica et Cosmochimica Acta, Volume 73, 2009, Pages 469-488",168,"232_Th_04","http://www.creationismonline.com/YEC/Th-Pb.xlsm",168,null,53,13,8,null,null,37,11,null,6]
[169,"Earth and Planetary Science Letters 301 (2011) 469-478",169,"Pb_207_01","http://www.creationismonline.com/YEC/Research.xlsm",169,null,37,null,null,null,null,37]
[170,"Earth and Planetary Science Letters, 104 (1991) 1-15",170,"Pb_207_02","http://www.creationismonline.com/YEC/Research.xlsm",170,null,37,null,null,null,null,37]
[171,"Geology Magazine, Volume 141, Number 1, 2004, Pages 55-62",171,"GOOD_D","http://www.creationismonline.com/YEC/GOOD.xlsm",171,null,76,9,9,null,null,38,null,null,38]
[172,"Earth and Planetary Science Letters, 34 (1977) 419-431",172,"Pb_207_11","http://www.creationismonline.com/YEC/Research.xlsm",172,null,39,null,null,null,null,39]
[173,"Earth and Planetary Science Letters, 76 (1985) Pages 57-70",173,"Excellent_33","http://www.creationismonline.com/YEC/Excellent.xlsm",173,null,19,null,null,null,null,40,3,null,2]
[174,"Chemical Geology, 66 (1987) Pages 193-208",174,"Excellent_11","http://www.creationismonline.com/YEC/Excellent.xlsm",174,null,6,null,null,null,null,41]
[175,"Chemical Geology, 2009, Volume 259, Pages 143 - 151",175,"Iso_Plot_014","http://www.creationismonline.com/YEC/Plot_Index.xlsm",175,null,41,null,null,null,null,41]
[176,"Gcochimica et Cosmochimtca Acta, 1995, Volume 59, Number 2, Pages 381-390",176,"Thorium_A","http://www.creationismonline.com/YEC/Th-Pb.xlsm",176,null,120,77,73,null,null,42,37,null,40]
[177,"Precambrian Research 113 (2002) 155-168",177,"Pb_207_16","http://www.creationismonline.com/YEC/Research.xlsm",177,null,46,null,null,null,null,43]
[178,"Chemical Geology 236 (2007) Pages 27-41",178,"Excellent_10","http://www.creationismonline.com/YEC/Excellent.xlsm",178,null,42,null,1,null,null,44]
[179,"Gondwana Research 14 (2008) Page 644-662",179,"Excellent_20","http://www.creationismonline.com/YEC/Excellent.xlsm",179,null,3,null,null,null,null,44]
[180,"Gondwana Research 14 (2008) Page 644-662",180,"Excellent_27","http://www.creationismonline.com/YEC/Excellent.xlsm",180,null,20,null,null,null,null,44]
[181,"http://petrology.oxfordjournals.org/content/suppl/2010/03/31/egq009.DC1/ElecApp_A12_TephraFromOutsideIzuBonin.xls",181,"Very_Old_V","http://www.creationismonline.com/YEC/Very_Old_V.xls",181,null,44,null,null,null,null,44]
[182,"Precambrian Research 114 (2002) 277-294",182,"Pb_207_14","http://www.creationismonline.com/YEC/Research.xlsm",182,null,43,null,null,null,null,45]
[183,"Geochimica el Cosmochimica Acta, 1991, Volume 55, Pages 2025-2043",183,"Rb-Sr_04","http://www.creationismonline.com/YEC/Rubidium_Strontium_02.xlsm",183,null,45,null,null,null,null,45]
[184,"http://georoc.mpch-mainz.gwdg.de/georoc/",184,"Very_Old_B_9","http://www.creationismonline.com/YEC/Very_Old_B_9.xlsx",184,null,45,null,null,null,null,45]
[185,"Precambrian Research 162 (2008) 441-474",185,"Pb_207_13","http://www.creationismonline.com/YEC/Research.xlsm",185,null,63,null,null,null,null,46]
[186,"Gondwana Research 11 (2007) Page 69-91",186,"Excellent_18","http://www.creationismonline.com/YEC/Excellent.xlsm",186,null,5,null,null,null,null,47]
[187,"Gondwana Research 11 (2007) Page 69-91",187,"Excellent_25","http://www.creationismonline.com/YEC/Excellent.xlsm",187,null,33,null,null,null,null,47]
[188,"Mineral Deposita, 2010, Volume 45, Pages 393-410",188,"232_Th_06","http://www.creationismonline.com/YEC/Th-Pb.xlsm",188,null,120,49,39,null,null,48,34,18,18]
[189,"Geochimica et Cosmochimica Acta, 2002, Volume 66, Number 14, Pages 2569-2581",189,"Nd_Sm_19","http://www.creationismonline.com/YEC/Neodymium_Samarium.xlsm",189,null,75,null,null,null,null,48]
[190,"http://petrology.oxfordjournals.org/content/suppl/2008/03/20/egn018.DC1/jpet-jun-07-0081-File027.xls",190,"Very_Old_M","http://www.creationismonline.com/YEC/Very_Old_M.xls",190,null,48,null,null,null,null,48]
[191,"Earth and Planetary Sctence Letters, 113 (1992) 107-128",191,"Pb-206_18","http://www.creationismonline.com/YEC/Lead_206_207.xlsm",191,null,92,13,11,null,null,50,null,null,29]
[192,"Earth and Planetary Science Letters, Volume 113, 1992, Pages 107-128",192,"Nd_Sm_08","http://www.creationismonline.com/YEC/Neodymium_Samarium.xlsm",192,null,106,22,18,null,null,50,24,null,32]
[193,"Earth and Planetary Science Letters, Volume 113, 1992, Pages 107-128",193,"Rb-Sr_23","http://www.creationismonline.com/YEC/Rubidium_Strontium_01.xlsm",193,null,106,22,18,null,null,50,24,null,32]
[194,"Earfh and Planetary Science Letters, 94 (1989) Pages 236-244",194,"Excellent_13","http://www.creationismonline.com/YEC/Excellent.xlsm",194,null,16,null,1,null,null,52]
[195,"Earth and Planetary Science Letters, 2008,  doi:10.1016/j.epsl.2008.08.023",195,"GOOD_S","http://www.creationismonline.com/YEC/GOOD.xlsm",195,null,53,null,null,null,null,53]
[196,"Journal Of Petrology, 2001, Volume 42, Number 4, Pages 731-763",196,"Rb-Sr_35","http://www.creationismonline.com/YEC/Rubidium_Strontium_01.xlsm",196,null,93,28,21,null,null,56,null,null,37]
[197,"Earth and Planetary Science Letters, Volume 183, 2000, Pages 73-92",197,"Nd_Sm_10","http://www.creationismonline.com/YEC/Neodymium_Samarium.xlsm",197,null,58,null,null,null,null,58]
[198,"Earth and Planetary Science Letters, Volume 183, 2000, Pages 73-92",198,"Rb-Sr_27","http://www.creationismonline.com/YEC/Rubidium_Strontium_01.xlsm",198,null,58,null,null,null,null,58]
[199,"Geochimica et Cosmochimica Acta, 1997, Volume 61, Number 8, Pages 1713-1731",199,"Rb-Sr_18","http://www.creationismonline.com/YEC/Rubidium_Strontium_02.xlsm",199,null,58,null,null,null,null,58]
[200,"Journal Of Petrology, 1998, Volume 39, Number 7, Pages 1285-1306",200,"Iso_Plot_004","http://www.creationismonline.com/YEC/Plot_Index.xlsm",200,null,131,38,32,null,null,59,45,null,30]
[201,"Earth And Planetary Science Letters, Volume 302, 2011, Pages 154-162",201,"GOOD_L","http://www.creationismonline.com/YEC/GOOD.xlsm",201,null,63,null,null,null,null,63]
[202,"Earth and Planetary Science Letters, 2011, Volume 302, Pages 154-162",202,"Excellent_46","http://www.creationismonline.com/YEC/Excellent.xlsm",202,null,7,null,null,null,null,66]
[203,"Journal Of Petrology, Page 1 Of 45, Doi:10.1093/petrology/egl025",203,"GOOD_R","http://www.creationismonline.com/YEC/GOOD.xlsm",203,null,67,null,null,null,null,67]
[204,"Journal Of Petrology, 2005, Volume 46, Number 4, Pages 829-858",204,"Rb-Sr_47","http://www.creationismonline.com/YEC/Rubidium_Strontium_01.xlsm",204,null,192,75,57,null,null,70,70,null,52]
[205,"Journal Of Petrology, 2005, Volume 46, Number 4, Pages 829-858",205,"Iso_Plot_009","http://www.creationismonline.com/YEC/Plot_Index.xlsm",205,null,192,75,57,null,null,70,70,null,55]
[206,"http://geosphere.gsapubs.org/content/suppl/2009/02/18/3.6.683.DC1/00138_App3.xls",206,"Very_Old_E","http://www.creationismonline.com/YEC/Very_Old_E.xls",206,null,174,97,26,null,null,70,98,null,10]
[207,"Earth and Planetary Science Letters 300 (2010) 152-163",207,"Pb-206_05","http://www.creationismonline.com/YEC/Lead_206_207.xlsm",207,null,73,null,null,null,null,73]
[208,"www.ldeo.columbia.edu/~cai/Pb.xls",208,"Very_Old_D","http://www.creationismonline.com/YEC/Very_Old_D.xls",208,null,74,null,null,null,null,74]
[209,"Geochimica et Cosmochimica Acta, 1970, Vol. 34, pp. 1039 to 1106.",209,"Pb-206_09","http://www.creationismonline.com/YEC/Lead_206_207.xlsm",209,null,79,null,null,null,null,78]
[210,"Nature, Volume 368, 1994, Page 514 - 519 ",210,"Excellent_30","http://www.creationismonline.com/YEC/Excellent.xlsm",210,null,23,null,null,null,null,81]
[211,"Journal Of Petrology, Volume 0, Number 0, Pages 1-29, 2010 ",211,"GOOD_B","http://www.creationismonline.com/YEC/GOOD.xlsm",211,null,85,null,null,null,null,85]
[212,"http://geosphere.gsapubs.org/content/suppl/2009/02/18/4.5.829.DC1/10.1130_GES00166-S1.xls",212,"Very_Old_A_7","http://www.creationismonline.com/YEC/Very_Old_A_7.xls",212,null,86,null,null,null,null,86]
[213,"Geochimica et Cosmochimica Acta, 2007, Volume 71, Pages 1583 - 1604",213,"Iso_Plot_015","http://www.creationismonline.com/YEC/Plot_Index.xlsm",213,null,91,null,null,null,null,91]
[214,"http://www1.tecnet.or.jp/lab/data/db_sci/OIB.XLS",214,"Very_Old_A_3","http://www.creationismonline.com/YEC/Very_Old_A_3.xls",214,null,93,null,null,null,null,93]
[215,"www.nature.com/nature/journal/v434/n7035/extref/nature03402-s1.xls",215,"Very_Old_B_3","http://www.creationismonline.com/YEC/Very_Old_B_3.xls",215,null,93,null,null,null,null,93]
[216,"Earth and Planetary Science Letters 306 (2011) 86-97",216,"Pb_207_06","http://www.creationismonline.com/YEC/Research.xlsm",216,null,96,null,null,null,null,96]
[217,"Geochimica et Cosmochimica Acta, 1994, Volume 58, Number 15, Pages 3155-3169",217,"Thorium_D","http://www.creationismonline.com/YEC/Th-Pb.xlsm",217,null,169,34,21,null,null,100,1,null,69]
[218,"Journal Of Petrology, 1998, Volume 39 Number 11-12, Pages 1847-1864",218,"Excellent_37","http://www.creationismonline.com/YEC/Excellent.xlsm",218,null,15,null,null,null,null,101]
[219,"http://earthref.org/",219,"Very_Old_C_3","http://www.creationismonline.com/YEC/Very_Old_C_3.xls",219,null,204,46,37,null,null,102,23,39,40]
[220,"Earth and Planetary Science Letters 240 (2005) 605- 620",220,"Pb_207_04","http://www.creationismonline.com/YEC/Research.xlsm",220,null,104,null,null,null,null,104]
[221,"http://petrology.oxfordjournals.org/content/suppl/2007/02/14/egl079.DC1/egl079-jpet-may-06-0042-File004.xls",221,"Very_Old_H","http://www.creationismonline.com/YEC/Very_Old_H.xls",221,null,106,null,null,null,null,106]
[222,"Geochimica et Cosmochimica Acta 71 (2007) 5514-5527",222,"Pb-206_25","http://www.creationismonline.com/YEC/Lead_206_207.xlsm",222,null,113,null,null,null,null,113]
[223,"Geochemistry, Geophysics And Geosystems, 2005, Volume 6, Number 11",223,"Excellent_47","http://www.creationismonline.com/YEC/Excellent.xlsm",223,null,66,null,null,null,null,123]
[224,"ftp://rock.geosociety.org/pub/reposit/2008/2008019.xls",224,"Very_Old_C_4","http://www.creationismonline.com/YEC/Very_Old_C_4.xls",224,null,147,null,null,null,null,147]
[225,"http://www1.tecnet.or.jp/lab/data/db_sci/MORB.xls",225,"Very_Old_A_2","http://www.creationismonline.com/YEC/Very_Old_A_2.xls",225,null,152,null,null,null,null,152]
[226,"Geochimica et Cosmochimica Acta, 2001, Volume 65, Number 15, Pages 2555-2570",226,"Nd_Sm_18","http://www.creationismonline.com/YEC/Neodymium_Samarium.xlsm",226,null,87,null,null,null,null,168]
[227,"http://pubs.usgs.gov/of/1987/0259/report.pdf",227,"Very_Old_C_2","http://www.creationismonline.com/YEC/Very_Old_C_2.xls",227,null,207,null,null,null,null,207]
[228,"http://www.earthchem.org/deeplith/search",228,"Very_Old_C_1","http://www.creationismonline.com/YEC/Very_Old_C_1.xls",228,null,245,11,6,null,null,216,10,null,27]
[229,"www.geo.unibe.ch/isotopegeology/homepbnd.xls",229,"Very_Old_J","http://www.creationismonline.com/YEC/Very_Old_J.xls",229,null,264,null,null,null,null,264]
[230,"http://geosphere.gsapubs.org/content/suppl/2012/03/19/GES00728.1.DC1/GS728_SuppT02.xls",230,"Very_Old_A_6","http://www.creationismonline.com/YEC/Very_Old_A_6.xls",230,null,397,null,null,null,null,397]
[231,"www.nature.com/ngeo/journal/v4/n12/extref/ngeo1263-s1.xls",231,"Very_Old_B_5","http://www.creationismonline.com/YEC/Very_Old_B_5.xls",231,null,440,null,null,null,null,440]
[232,"www.ruf.rice.edu/~ctlee/BOXMODEL.xls",232,"Very_Old_R","http://www.creationismonline.com/YEC/Very_Old_R.xls",232,null,1122,437,412,null,null,441,147,51,189]
[233,"www.nature.com/nature/journal/v476/n7361/extref/nature10321-s2.xls",233,"Very_Old_B_2","http://www.creationismonline.com/YEC/Very_Old_B_2.xls",233,null,446,null,null,null,null,446]
[234,"http://georoc.mpch-mainz.gwdg.de/georoc/webseite/Expert%20Datasets/Lustrino_Wilson09.xls",234,"Very_Old_B_8","http://www.creationismonline.com/YEC/Very_Old_B_8.xlsx",234,null,1012,null,null,null,null,1012]
[235,"http://petrology.oxfordjournals.org/content/suppl/2007/02/15/egl078.DC1/jpet-aug-06-0094-File006.xls",235,"Very_Old_Y","http://www.creationismonline.com/YEC/Very_Old_Y.xls",235,null,1549,null,null,null,null,1549]
[236,"http://www.navdat.org",236,"Very_Old_B_7","http://www.creationismonline.com/YEC/Very_Old_B_7.xls",236,null,3314,null,null,null,null,3314]
[null,null,null,null,null,null,{"$f":"SUM(G1:G237)","v":157},18209,1931,1548,10,17,14933,1534,531,1591,11,153,6]
[null,null,null,null,null,null,"Negative","Earth","Galaxy","Universe","Ar","Re","Pb","Th",235,238,"Sm","Rb","Lu"]
[]
[]
[null,null,null,{"$f":"(\"http://www.creationismonline.com/YEC/\" &E242)","v":"http://www.creationismonline.com/YEC/http://www.creationismonline.com/YEC/Lead_206_207.xlsm"},"http://www.creationismonline.com/YEC/Lead_206_207.xlsm"]
[null,null,null,{"$f":"(\"http://www.creationismonline.com/YEC/\" &E243)","v":"http://www.creationismonline.com/YEC/http://www.creationismonline.com/YEC/Plot_Index.xlsm"},"http://www.creationismonline.com/YEC/Plot_Index.xlsm"]
[null,null,null,"http://www.creationismonline.com/YEC/http://www.creationismonline.com/YEC/Excellent.xlsm","http://www.creationismonline.com/YEC/Excellent.xlsm"]
[null,null,null,"http://www.creationismonline.com/YEC/http://www.creationismonline.com/YEC/Rubidium_Strontium_01.xlsm","http://www.creationismonline.com/YEC/Rubidium_Strontium_01.xlsm"]
[null,null,null,"http://www.creationismonline.com/YEC/http://www.creationismonline.com/YEC/Good.xlsm","http://www.creationismonline.com/YEC/Good.xlsm"]
[null,null,null,"http://www.creationismonline.com/YEC/http://www.creationismonline.com/YEC/Dating_Methods.xlsm","http://www.creationismonline.com/YEC/Dating_Methods.xlsm"]
[null,null,null,"http://www.creationismonline.com/YEC/http://www.creationismonline.com/YEC/Dating_Methods.xlsm","http://www.creationismonline.com/YEC/Dating_Methods.xlsm"]
[null,null,null,"http://www.creationismonline.com/YEC/http://www.creationismonline.com/YEC/Th-Pb.xlsm","http://www.creationismonline.com/YEC/Th-Pb.xlsm"]
[null,null,null,"http://www.creationismonline.com/YEC/http://www.creationismonline.com/YEC/Th-Pb.xlsm","http://www.creationismonline.com/YEC/Th-Pb.xlsm"]
[null,null,null,"http://www.creationismonline.com/YEC/http://www.creationismonline.com/YEC/Research.xlsm","http://www.creationismonline.com/YEC/Research.xlsm"]
[null,null,null,"http://www.creationismonline.com/YEC/http://www.creationismonline.com/YEC/Dating_Methods.xlsm","http://www.creationismonline.com/YEC/Dating_Methods.xlsm"]
[null,null,null,"http://www.creationismonline.com/YEC/http://www.creationismonline.com/YEC/Dating_Methods.xlsm","http://www.creationismonline.com/YEC/Dating_Methods.xlsm"]
[null,null,null,"http://www.creationismonline.com/YEC/http://www.creationismonline.com/YEC/Impossible.xlsm","http://www.creationismonline.com/YEC/Impossible.xlsm"]
[null,null,null,"http://www.creationismonline.com/YEC/http://www.creationismonline.com/YEC/Excellent.xlsm","http://www.creationismonline.com/YEC/Excellent.xlsm"]
[null,null,null,"http://www.creationismonline.com/YEC/http://www.creationismonline.com/YEC/Excellent.xlsm","http://www.creationismonline.com/YEC/Excellent.xlsm"]
[null,null,null,"http://www.creationismonline.com/YEC/http://www.creationismonline.com/YEC/Rubidium_Strontium_01.xlsm","http://www.creationismonline.com/YEC/Rubidium_Strontium_01.xlsm"]
[null,null,null,"http://www.creationismonline.com/YEC/http://www.creationismonline.com/YEC/Very_Old_Z.xls","http://www.creationismonline.com/YEC/Very_Old_Z.xls"]
[null,null,null,"http://www.creationismonline.com/YEC/http://www.creationismonline.com/YEC/Dating_Methods.xlsm","http://www.creationismonline.com/YEC/Dating_Methods.xlsm"]
[null,null,null,"http://www.creationismonline.com/YEC/http://www.creationismonline.com/YEC/Excellent.xlsm","http://www.creationismonline.com/YEC/Excellent.xlsm"]
[null,null,null,"http://www.creationismonline.com/YEC/http://www.creationismonline.com/YEC/Lead_206_207.xlsm","http://www.creationismonline.com/YEC/Lead_206_207.xlsm"]
[null,null,null,"http://www.creationismonline.com/YEC/http://www.creationismonline.com/YEC/Rubidium_Strontium_01.xlsm","http://www.creationismonline.com/YEC/Rubidium_Strontium_01.xlsm"]
[null,null,null,"http://www.creationismonline.com/YEC/http://www.creationismonline.com/YEC/Rubidium_Strontium_01.xlsm","http://www.creationismonline.com/YEC/Rubidium_Strontium_01.xlsm"]
[null,null,null,"http://www.creationismonline.com/YEC/http://www.creationismonline.com/YEC/Rubidium_Strontium_01.xlsm","http://www.creationismonline.com/YEC/Rubidium_Strontium_01.xlsm"]
[null,null,null,"http://www.creationismonline.com/YEC/http://www.creationismonline.com/YEC/Rubidium_Strontium_02.xlsm","http://www.creationismonline.com/YEC/Rubidium_Strontium_02.xlsm"]
[null,null,null,"http://www.creationismonline.com/YEC/http://www.creationismonline.com/YEC/Plot_Index.xlsm","http://www.creationismonline.com/YEC/Plot_Index.xlsm"]
[null,null,null,"http://www.creationismonline.com/YEC/http://www.creationismonline.com/YEC/Plot_Index.xlsm","http://www.creationismonline.com/YEC/Plot_Index.xlsm"]
[null,null,null,"http://www.creationismonline.com/YEC/http://www.creationismonline.com/YEC/Excellent.xlsm","http://www.creationismonline.com/YEC/Excellent.xlsm"]
[null,null,null,"http://www.creationismonline.com/YEC/http://www.creationismonline.com/YEC/Plot_Index.xlsm","http://www.creationismonline.com/YEC/Plot_Index.xlsm"]
[null,null,null,"http://www.creationismonline.com/YEC/http://www.creationismonline.com/YEC/Very_Old_X.xls","http://www.creationismonline.com/YEC/Very_Old_X.xls"]
[null,null,null,"http://www.creationismonline.com/YEC/http://www.creationismonline.com/YEC/GOOD.xlsm","http://www.creationismonline.com/YEC/GOOD.xlsm"]
[null,null,null,"http://www.creationismonline.com/YEC/http://www.creationismonline.com/YEC/Excellent.xlsm","http://www.creationismonline.com/YEC/Excellent.xlsm"]
[null,null,null,"http://www.creationismonline.com/YEC/http://www.creationismonline.com/YEC/Excellent.xlsm","http://www.creationismonline.com/YEC/Excellent.xlsm"]
[null,null,null,"http://www.creationismonline.com/YEC/http://www.creationismonline.com/YEC/Rubidium_Strontium_02.xlsm","http://www.creationismonline.com/YEC/Rubidium_Strontium_02.xlsm"]
[null,null,null,"http://www.creationismonline.com/YEC/http://www.creationismonline.com/YEC/Rubidium_Strontium_02.xlsm","http://www.creationismonline.com/YEC/Rubidium_Strontium_02.xlsm"]
[null,null,null,"http://www.creationismonline.com/YEC/http://www.creationismonline.com/YEC/Excellent.xlsm","http://www.creationismonline.com/YEC/Excellent.xlsm"]
[null,null,null,"http://www.creationismonline.com/YEC/http://www.creationismonline.com/YEC/Excellent.xlsm","http://www.creationismonline.com/YEC/Excellent.xlsm"]
[null,null,null,"http://www.creationismonline.com/YEC/http://www.creationismonline.com/YEC/Research.xlsm","http://www.creationismonline.com/YEC/Research.xlsm"]
[null,null,null,"http://www.creationismonline.com/YEC/http://www.creationismonline.com/YEC/Research.xlsm","http://www.creationismonline.com/YEC/Research.xlsm"]
[null,null,null,"http://www.creationismonline.com/YEC/http://www.creationismonline.com/YEC/Neodymium_Samarium.xlsm","http://www.creationismonline.com/YEC/Neodymium_Samarium.xlsm"]
[null,null,null,"http://www.creationismonline.com/YEC/http://www.creationismonline.com/YEC/Rubidium_Strontium_01.xlsm","http://www.creationismonline.com/YEC/Rubidium_Strontium_01.xlsm"]
[null,null,null,"http://www.creationismonline.com/YEC/http://www.creationismonline.com/YEC/Rubidium_Strontium_02.xlsm","http://www.creationismonline.com/YEC/Rubidium_Strontium_02.xlsm"]
[null,null,null,"http://www.creationismonline.com/YEC/http://www.creationismonline.com/YEC/Rubidium_Strontium_02.xlsm","http://www.creationismonline.com/YEC/Rubidium_Strontium_02.xlsm"]
[null,null,null,"http://www.creationismonline.com/YEC/http://www.creationismonline.com/YEC/Plot_Index.xlsm","http://www.creationismonline.com/YEC/Plot_Index.xlsm"]
[null,null,null,"http://www.creationismonline.com/YEC/http://www.creationismonline.com/YEC/Very_Old_A_5.xls","http://www.creationismonline.com/YEC/Very_Old_A_5.xls"]
[null,null,null,"http://www.creationismonline.com/YEC/http://www.creationismonline.com/YEC/Future.xlsm","http://www.creationismonline.com/YEC/Future.xlsm"]
[null,null,null,"http://www.creationismonline.com/YEC/http://www.creationismonline.com/YEC/GOOD.xlsm","http://www.creationismonline.com/YEC/GOOD.xlsm"]
[null,null,null,"http://www.creationismonline.com/YEC/http://www.creationismonline.com/YEC/Th-Pb.xlsm","http://www.creationismonline.com/YEC/Th-Pb.xlsm"]
[null,null,null,"http://www.creationismonline.com/YEC/http://www.creationismonline.com/YEC/Th-Pb.xlsm","http://www.creationismonline.com/YEC/Th-Pb.xlsm"]
[null,null,null,"http://www.creationismonline.com/YEC/http://www.creationismonline.com/YEC/Neodymium_Samarium.xlsm","http://www.creationismonline.com/YEC/Neodymium_Samarium.xlsm"]
[null,null,null,"http://www.creationismonline.com/YEC/http://www.creationismonline.com/YEC/Rubidium_Strontium_01.xlsm","http://www.creationismonline.com/YEC/Rubidium_Strontium_01.xlsm"]
[null,null,null,"http://www.creationismonline.com/YEC/http://www.creationismonline.com/YEC/Very_Old_F.xls","http://www.creationismonline.com/YEC/Very_Old_F.xls"]
[null,null,null,"http://www.creationismonline.com/YEC/http://www.creationismonline.com/YEC/Very_Old_L.xls","http://www.creationismonline.com/YEC/Very_Old_L.xls"]
[null,null,null,"http://www.creationismonline.com/YEC/http://www.creationismonline.com/YEC/Dating_Methods.xlsm","http://www.creationismonline.com/YEC/Dating_Methods.xlsm"]
[null,null,null,"http://www.creationismonline.com/YEC/http://www.creationismonline.com/YEC/Negative.xlsm","http://www.creationismonline.com/YEC/Negative.xlsm"]
[null,null,null,"http://www.creationismonline.com/YEC/http://www.creationismonline.com/YEC/Rubidium_Strontium_01.xlsm","http://www.creationismonline.com/YEC/Rubidium_Strontium_01.xlsm"]
[null,null,null,"http://www.creationismonline.com/YEC/http://www.creationismonline.com/YEC/Very_Old_K.xls","http://www.creationismonline.com/YEC/Very_Old_K.xls"]
[null,null,null,"http://www.creationismonline.com/YEC/http://www.creationismonline.com/YEC/Very_Old_Q.xls","http://www.creationismonline.com/YEC/Very_Old_Q.xls"]
[null,null,null,"http://www.creationismonline.com/YEC/http://www.creationismonline.com/YEC/Very_Old_A_4.xls","http://www.creationismonline.com/YEC/Very_Old_A_4.xls"]
[null,null,null,"http://www.creationismonline.com/YEC/http://www.creationismonline.com/YEC/Negative.xlsm","http://www.creationismonline.com/YEC/Negative.xlsm"]
[null,null,null,"http://www.creationismonline.com/YEC/http://www.creationismonline.com/YEC/Excellent.xlsm","http://www.creationismonline.com/YEC/Excellent.xlsm"]
[null,null,null,"http://www.creationismonline.com/YEC/http://www.creationismonline.com/YEC/Excellent.xlsm","http://www.creationismonline.com/YEC/Excellent.xlsm"]
[null,null,null,"http://www.creationismonline.com/YEC/http://www.creationismonline.com/YEC/Excellent.xlsm","http://www.creationismonline.com/YEC/Excellent.xlsm"]
[null,null,null,"http://www.creationismonline.com/YEC/http://www.creationismonline.com/YEC/Rubidium_Strontium_01.xlsm","http://www.creationismonline.com/YEC/Rubidium_Strontium_01.xlsm"]
[null,null,null,"http://www.creationismonline.com/YEC/http://www.creationismonline.com/YEC/Rubidium_Strontium_01.xlsm","http://www.creationismonline.com/YEC/Rubidium_Strontium_01.xlsm"]
[null,null,null,"http://www.creationismonline.com/YEC/http://www.creationismonline.com/YEC/GOOD.xlsm","http://www.creationismonline.com/YEC/GOOD.xlsm"]
[null,null,null,{"$f":"(\"http://www.creationismonline.com/YEC/\" &E307)","v":"http://www.creationismonline.com/YEC/http://www.creationismonline.com/YEC/GOOD.xlsm"},"http://www.creationismonline.com/YEC/GOOD.xlsm"]
[null,null,null,"http://www.creationismonline.com/YEC/http://www.creationismonline.com/YEC/Th-Pb.xlsm","http://www.creationismonline.com/YEC/Th-Pb.xlsm"]
[null,null,null,"http://www.creationismonline.com/YEC/http://www.creationismonline.com/YEC/Excellent.xlsm","http://www.creationismonline.com/YEC/Excellent.xlsm"]
[null,null,null,"http://www.creationismonline.com/YEC/http://www.creationismonline.com/YEC/Excellent.xlsm","http://www.creationismonline.com/YEC/Excellent.xlsm"]
[null,null,null,"http://www.creationismonline.com/YEC/http://www.creationismonline.com/YEC/Excellent.xlsm","http://www.creationismonline.com/YEC/Excellent.xlsm"]
[null,null,null,"http://www.creationismonline.com/YEC/http://www.creationismonline.com/YEC/Lead_206_207.xlsm","http://www.creationismonline.com/YEC/Lead_206_207.xlsm"]
[null,null,null,"http://www.creationismonline.com/YEC/http://www.creationismonline.com/YEC/Research.xlsm","http://www.creationismonline.com/YEC/Research.xlsm"]
[null,null,null,"http://www.creationismonline.com/YEC/http://www.creationismonline.com/YEC/Plot_Index.xlsm","http://www.creationismonline.com/YEC/Plot_Index.xlsm"]
[null,null,null,"http://www.creationismonline.com/YEC/http://www.creationismonline.com/YEC/Plot_Index.xlsm","http://www.creationismonline.com/YEC/Plot_Index.xlsm"]
[null,null,null,"http://www.creationismonline.com/YEC/http://www.creationismonline.com/YEC/Plot_Index.xlsm","http://www.creationismonline.com/YEC/Plot_Index.xlsm"]
[null,null,null,"http://www.creationismonline.com/YEC/http://www.creationismonline.com/YEC/Dating_Methods.xlsm","http://www.creationismonline.com/YEC/Dating_Methods.xlsm"]
[null,null,null,"http://www.creationismonline.com/YEC/http://www.creationismonline.com/YEC/GOOD.xlsm","http://www.creationismonline.com/YEC/GOOD.xlsm"]
[null,null,null,"http://www.creationismonline.com/YEC/http://www.creationismonline.com/YEC/Excellent.xlsm","http://www.creationismonline.com/YEC/Excellent.xlsm"]
[null,null,null,"http://www.creationismonline.com/YEC/http://www.creationismonline.com/YEC/Excellent.xlsm","http://www.creationismonline.com/YEC/Excellent.xlsm"]
[null,null,null,"http://www.creationismonline.com/YEC/http://www.creationismonline.com/YEC/Lead_206_207.xlsm","http://www.creationismonline.com/YEC/Lead_206_207.xlsm"]
[null,null,null,"http://www.creationismonline.com/YEC/http://www.creationismonline.com/YEC/Rubidium_Strontium_01.xlsm","http://www.creationismonline.com/YEC/Rubidium_Strontium_01.xlsm"]
[null,null,null,"http://www.creationismonline.com/YEC/http://www.creationismonline.com/YEC/Rubidium_Strontium_01.xlsm","http://www.creationismonline.com/YEC/Rubidium_Strontium_01.xlsm"]
[null,null,null,"http://www.creationismonline.com/YEC/http://www.creationismonline.com/YEC/Plot_Index.xlsm","http://www.creationismonline.com/YEC/Plot_Index.xlsm"]
[null,null,null,"http://www.creationismonline.com/YEC/http://www.creationismonline.com/YEC/Excellent.xlsm","http://www.creationismonline.com/YEC/Excellent.xlsm"]
[null,null,null,"http://www.creationismonline.com/YEC/http://www.creationismonline.com/YEC/Excellent.xlsm","http://www.creationismonline.com/YEC/Excellent.xlsm"]
[null,null,null,"http://www.creationismonline.com/YEC/http://www.creationismonline.com/YEC/Neodymium_Samarium.xlsm","http://www.creationismonline.com/YEC/Neodymium_Samarium.xlsm"]
[null,null,null,"http://www.creationismonline.com/YEC/http://www.creationismonline.com/YEC/Rubidium_Strontium_01.xlsm","http://www.creationismonline.com/YEC/Rubidium_Strontium_01.xlsm"]
[null,null,null,"http://www.creationismonline.com/YEC/http://www.creationismonline.com/YEC/Rubidium_Strontium_02.xlsm","http://www.creationismonline.com/YEC/Rubidium_Strontium_02.xlsm"]
[null,null,null,"http://www.creationismonline.com/YEC/http://www.creationismonline.com/YEC/Plot_Index.xlsm","http://www.creationismonline.com/YEC/Plot_Index.xlsm"]
[null,null,null,"http://www.creationismonline.com/YEC/http://www.creationismonline.com/YEC/Dating_Methods.xlsm","http://www.creationismonline.com/YEC/Dating_Methods.xlsm"]
[null,null,null,"http://www.creationismonline.com/YEC/http://www.creationismonline.com/YEC/Excellent.xlsm","http://www.creationismonline.com/YEC/Excellent.xlsm"]
[null,null,null,"http://www.creationismonline.com/YEC/http://www.creationismonline.com/YEC/Excellent.xlsm","http://www.creationismonline.com/YEC/Excellent.xlsm"]
[null,null,null,"http://www.creationismonline.com/YEC/http://www.creationismonline.com/YEC/Rubidium_Strontium_01.xlsm","http://www.creationismonline.com/YEC/Rubidium_Strontium_01.xlsm"]
[null,null,null,"http://www.creationismonline.com/YEC/http://www.creationismonline.com/YEC/Plot_Index.xlsm","http://www.creationismonline.com/YEC/Plot_Index.xlsm"]
[null,null,null,"http://www.creationismonline.com/YEC/http://www.creationismonline.com/YEC/Very_Old_N.xls","http://www.creationismonline.com/YEC/Very_Old_N.xls"]
[null,null,null,"http://www.creationismonline.com/YEC/http://www.creationismonline.com/YEC/Lead_206_207.xlsm","http://www.creationismonline.com/YEC/Lead_206_207.xlsm"]
[null,null,null,"http://www.creationismonline.com/YEC/http://www.creationismonline.com/YEC/Research.xlsm","http://www.creationismonline.com/YEC/Research.xlsm"]
[null,null,null,"http://www.creationismonline.com/YEC/http://www.creationismonline.com/YEC/Neodymium_Samarium.xlsm","http://www.creationismonline.com/YEC/Neodymium_Samarium.xlsm"]
[null,null,null,"http://www.creationismonline.com/YEC/http://www.creationismonline.com/YEC/Rubidium_Strontium_01.xlsm","http://www.creationismonline.com/YEC/Rubidium_Strontium_01.xlsm"]
[null,null,null,"http://www.creationismonline.com/YEC/http://www.creationismonline.com/YEC/Rubidium_Strontium_01.xlsm","http://www.creationismonline.com/YEC/Rubidium_Strontium_01.xlsm"]
[null,null,null,"http://www.creationismonline.com/YEC/http://www.creationismonline.com/YEC/Rubidium_Strontium_02.xlsm","http://www.creationismonline.com/YEC/Rubidium_Strontium_02.xlsm"]
[null,null,null,"http://www.creationismonline.com/YEC/http://www.creationismonline.com/YEC/Very_Old_U.xls","http://www.creationismonline.com/YEC/Very_Old_U.xls"]
[null,null,null,"http://www.creationismonline.com/YEC/http://www.creationismonline.com/YEC/Th-Pb.xlsm","http://www.creationismonline.com/YEC/Th-Pb.xlsm"]
[null,null,null,"http://www.creationismonline.com/YEC/http://www.creationismonline.com/YEC/Negative.xlsm","http://www.creationismonline.com/YEC/Negative.xlsm"]
[null,null,null,"http://www.creationismonline.com/YEC/http://www.creationismonline.com/YEC/Excellent.xlsm","http://www.creationismonline.com/YEC/Excellent.xlsm"]
[null,null,null,"http://www.creationismonline.com/YEC/http://www.creationismonline.com/YEC/Research.xlsm","http://www.creationismonline.com/YEC/Research.xlsm"]
[null,null,null,"http://www.creationismonline.com/YEC/http://www.creationismonline.com/YEC/Rubidium_Strontium_02.xlsm","http://www.creationismonline.com/YEC/Rubidium_Strontium_02.xlsm"]
[null,null,null,"http://www.creationismonline.com/YEC/http://www.creationismonline.com/YEC/Very_Old_W.xls","http://www.creationismonline.com/YEC/Very_Old_W.xls"]
[null,null,null,"http://www.creationismonline.com/YEC/http://www.creationismonline.com/YEC/Very_Old_A_1.xls","http://www.creationismonline.com/YEC/Very_Old_A_1.xls"]
[null,null,null,"http://www.creationismonline.com/YEC/http://www.creationismonline.com/YEC/Neodymium_Samarium.xlsm","http://www.creationismonline.com/YEC/Neodymium_Samarium.xlsm"]
[null,null,null,"http://www.creationismonline.com/YEC/http://www.creationismonline.com/YEC/Rubidium_Strontium_01.xlsm","http://www.creationismonline.com/YEC/Rubidium_Strontium_01.xlsm"]
[null,null,null,"http://www.creationismonline.com/YEC/http://www.creationismonline.com/YEC/Plot_Index.xlsm","http://www.creationismonline.com/YEC/Plot_Index.xlsm"]
[null,null,null,"http://www.creationismonline.com/YEC/http://www.creationismonline.com/YEC/Plot_Index.xlsm","http://www.creationismonline.com/YEC/Plot_Index.xlsm"]
[null,null,null,"http://www.creationismonline.com/YEC/http://www.creationismonline.com/YEC/Very_Old_A.xls","http://www.creationismonline.com/YEC/Very_Old_A.xls"]
[null,null,null,"http://www.creationismonline.com/YEC/http://www.creationismonline.com/YEC/Th-Pb.xlsm","http://www.creationismonline.com/YEC/Th-Pb.xlsm"]
[null,null,null,"http://www.creationismonline.com/YEC/http://www.creationismonline.com/YEC/Excellent.xlsm","http://www.creationismonline.com/YEC/Excellent.xlsm"]
[null,null,null,"http://www.creationismonline.com/YEC/http://www.creationismonline.com/YEC/Excellent.xlsm","http://www.creationismonline.com/YEC/Excellent.xlsm"]
[null,null,null,"http://www.creationismonline.com/YEC/http://www.creationismonline.com/YEC/Excellent.xlsm","http://www.creationismonline.com/YEC/Excellent.xlsm"]
[null,null,null,"http://www.creationismonline.com/YEC/http://www.creationismonline.com/YEC/Lead_206_207.xlsm","http://www.creationismonline.com/YEC/Lead_206_207.xlsm"]
[null,null,null,"http://www.creationismonline.com/YEC/http://www.creationismonline.com/YEC/Research.xlsm","http://www.creationismonline.com/YEC/Research.xlsm"]
[null,null,null,"http://www.creationismonline.com/YEC/http://www.creationismonline.com/YEC/Rubidium_Strontium_01.xlsm","http://www.creationismonline.com/YEC/Rubidium_Strontium_01.xlsm"]
[null,null,null,"http://www.creationismonline.com/YEC/http://www.creationismonline.com/YEC/Very_Old_A_9.xls","http://www.creationismonline.com/YEC/Very_Old_A_9.xls"]
[null,null,null,"http://www.creationismonline.com/YEC/http://www.creationismonline.com/YEC/GOOD.xlsm","http://www.creationismonline.com/YEC/GOOD.xlsm"]
[null,null,null,"http://www.creationismonline.com/YEC/http://www.creationismonline.com/YEC/Rubidium_Strontium_02.xlsm","http://www.creationismonline.com/YEC/Rubidium_Strontium_02.xlsm"]
[null,null,null,"http://www.creationismonline.com/YEC/http://www.creationismonline.com/YEC/Excellent.xlsm","http://www.creationismonline.com/YEC/Excellent.xlsm"]
[null,null,null,"http://www.creationismonline.com/YEC/http://www.creationismonline.com/YEC/Lead_206_207.xlsm","http://www.creationismonline.com/YEC/Lead_206_207.xlsm"]
[null,null,null,"http://www.creationismonline.com/YEC/http://www.creationismonline.com/YEC/Lead_206_207.xlsm","http://www.creationismonline.com/YEC/Lead_206_207.xlsm"]
[null,null,null,"http://www.creationismonline.com/YEC/http://www.creationismonline.com/YEC/Dating_Methods.xlsm","http://www.creationismonline.com/YEC/Dating_Methods.xlsm"]
[null,null,null,"http://www.creationismonline.com/YEC/http://www.creationismonline.com/YEC/GOOD.xlsm","http://www.creationismonline.com/YEC/GOOD.xlsm"]
[null,null,null,{"$f":"(\"http://www.creationismonline.com/YEC/\" &E371)","v":"http://www.creationismonline.com/YEC/http://www.creationismonline.com/YEC/Excellent.xlsm"},"http://www.creationismonline.com/YEC/Excellent.xlsm"]
[null,null,null,"http://www.creationismonline.com/YEC/http://www.creationismonline.com/YEC/Excellent.xlsm","http://www.creationismonline.com/YEC/Excellent.xlsm"]
[null,null,null,"http://www.creationismonline.com/YEC/http://www.creationismonline.com/YEC/Excellent.xlsm","http://www.creationismonline.com/YEC/Excellent.xlsm"]
[null,null,null,"http://www.creationismonline.com/YEC/http://www.creationismonline.com/YEC/Neodymium_Samarium.xlsm","http://www.creationismonline.com/YEC/Neodymium_Samarium.xlsm"]
[null,null,null,"http://www.creationismonline.com/YEC/http://www.creationismonline.com/YEC/Rubidium_Strontium_01.xlsm","http://www.creationismonline.com/YEC/Rubidium_Strontium_01.xlsm"]
[null,null,null,"http://www.creationismonline.com/YEC/http://www.creationismonline.com/YEC/Rubidium_Strontium_01.xlsm","http://www.creationismonline.com/YEC/Rubidium_Strontium_01.xlsm"]
[null,null,null,"http://www.creationismonline.com/YEC/http://www.creationismonline.com/YEC/Excellent.xlsm","http://www.creationismonline.com/YEC/Excellent.xlsm"]
[null,null,null,"http://www.creationismonline.com/YEC/http://www.creationismonline.com/YEC/Lead_206_207.xlsm","http://www.creationismonline.com/YEC/Lead_206_207.xlsm"]
[null,null,null,"http://www.creationismonline.com/YEC/http://www.creationismonline.com/YEC/Rubidium_Strontium_01.xlsm","http://www.creationismonline.com/YEC/Rubidium_Strontium_01.xlsm"]
[null,null,null,"http://www.creationismonline.com/YEC/http://www.creationismonline.com/YEC/Rubidium_Strontium_02.xlsm","http://www.creationismonline.com/YEC/Rubidium_Strontium_02.xlsm"]
[null,null,null,"http://www.creationismonline.com/YEC/http://www.creationismonline.com/YEC/Excellent.xlsm","http://www.creationismonline.com/YEC/Excellent.xlsm"]
[null,null,null,"http://www.creationismonline.com/YEC/http://www.creationismonline.com/YEC/Neodymium_Samarium.xlsm","http://www.creationismonline.com/YEC/Neodymium_Samarium.xlsm"]
[null,null,null,"http://www.creationismonline.com/YEC/http://www.creationismonline.com/YEC/Rubidium_Strontium_01.xlsm","http://www.creationismonline.com/YEC/Rubidium_Strontium_01.xlsm"]
[null,null,null,"http://www.creationismonline.com/YEC/http://www.creationismonline.com/YEC/Neodymium_Samarium.xlsm","http://www.creationismonline.com/YEC/Neodymium_Samarium.xlsm"]
[null,null,null,"http://www.creationismonline.com/YEC/http://www.creationismonline.com/YEC/Rubidium_Strontium_01.xlsm","http://www.creationismonline.com/YEC/Rubidium_Strontium_01.xlsm"]
[null,null,null,"http://www.creationismonline.com/YEC/http://www.creationismonline.com/YEC/Plot_Index.xlsm","http://www.creationismonline.com/YEC/Plot_Index.xlsm"]
[null,null,null,"http://www.creationismonline.com/YEC/http://www.creationismonline.com/YEC/Lead_206_207.xlsm","http://www.creationismonline.com/YEC/Lead_206_207.xlsm"]
[null,null,null,"http://www.creationismonline.com/YEC/http://www.creationismonline.com/YEC/Neodymium_Samarium.xlsm","http://www.creationismonline.com/YEC/Neodymium_Samarium.xlsm"]
[null,null,null,"http://www.creationismonline.com/YEC/http://www.creationismonline.com/YEC/Neodymium_Samarium.xlsm","http://www.creationismonline.com/YEC/Neodymium_Samarium.xlsm"]
[null,null,null,"http://www.creationismonline.com/YEC/http://www.creationismonline.com/YEC/Neodymium_Samarium.xlsm","http://www.creationismonline.com/YEC/Neodymium_Samarium.xlsm"]
[null,null,null,"http://www.creationismonline.com/YEC/http://www.creationismonline.com/YEC/Rubidium_Strontium_01.xlsm","http://www.creationismonline.com/YEC/Rubidium_Strontium_01.xlsm"]
[null,null,null,"http://www.creationismonline.com/YEC/http://www.creationismonline.com/YEC/Rubidium_Strontium_02.xlsm","http://www.creationismonline.com/YEC/Rubidium_Strontium_02.xlsm"]
[null,null,null,"http://www.creationismonline.com/YEC/http://www.creationismonline.com/YEC/Very_Old_S.xls","http://www.creationismonline.com/YEC/Very_Old_S.xls"]
[null,null,null,"http://www.creationismonline.com/YEC/http://www.creationismonline.com/YEC/Rubidium_Strontium_01.xlsm","http://www.creationismonline.com/YEC/Rubidium_Strontium_01.xlsm"]
[null,null,null,"http://www.creationismonline.com/YEC/http://www.creationismonline.com/YEC/Very_Old_T.xls","http://www.creationismonline.com/YEC/Very_Old_T.xls"]
[null,null,null,"http://www.creationismonline.com/YEC/http://www.creationismonline.com/YEC/Lead_206_207.xlsm","http://www.creationismonline.com/YEC/Lead_206_207.xlsm"]
[null,null,null,"http://www.creationismonline.com/YEC/http://www.creationismonline.com/YEC/Research.xlsm","http://www.creationismonline.com/YEC/Research.xlsm"]
[null,null,null,"http://www.creationismonline.com/YEC/http://www.creationismonline.com/YEC/Rubidium_Strontium_01.xlsm","http://www.creationismonline.com/YEC/Rubidium_Strontium_01.xlsm"]
[null,null,null,"http://www.creationismonline.com/YEC/http://www.creationismonline.com/YEC/Plot_Index.xlsm","http://www.creationismonline.com/YEC/Plot_Index.xlsm"]
[null,null,null,"http://www.creationismonline.com/YEC/http://www.creationismonline.com/YEC/Th-Pb.xlsm","http://www.creationismonline.com/YEC/Th-Pb.xlsm"]
[null,null,null,"http://www.creationismonline.com/YEC/http://www.creationismonline.com/YEC/Very_Old_P.xls","http://www.creationismonline.com/YEC/Very_Old_P.xls"]
[null,null,null,"http://www.creationismonline.com/YEC/http://www.creationismonline.com/YEC/Excellent.xlsm","http://www.creationismonline.com/YEC/Excellent.xlsm"]
[null,null,null,"http://www.creationismonline.com/YEC/http://www.creationismonline.com/YEC/Rubidium_Strontium_02.xlsm","http://www.creationismonline.com/YEC/Rubidium_Strontium_02.xlsm"]
[null,null,null,"http://www.creationismonline.com/YEC/http://www.creationismonline.com/YEC/Good.xlsm","http://www.creationismonline.com/YEC/Good.xlsm"]
[null,null,null,"http://www.creationismonline.com/YEC/http://www.creationismonline.com/YEC/Lead_206_207.xlsm","http://www.creationismonline.com/YEC/Lead_206_207.xlsm"]
[null,null,null,"http://www.creationismonline.com/YEC/http://www.creationismonline.com/YEC/Research.xlsm","http://www.creationismonline.com/YEC/Research.xlsm"]
[null,null,null,"http://www.creationismonline.com/YEC/http://www.creationismonline.com/YEC/Research.xlsm","http://www.creationismonline.com/YEC/Research.xlsm"]
[null,null,null,"http://www.creationismonline.com/YEC/http://www.creationismonline.com/YEC/Th-Pb.xlsm","http://www.creationismonline.com/YEC/Th-Pb.xlsm"]
[null,null,null,"http://www.creationismonline.com/YEC/http://www.creationismonline.com/YEC/Th-Pb.xlsm","http://www.creationismonline.com/YEC/Th-Pb.xlsm"]
[null,null,null,"http://www.creationismonline.com/YEC/http://www.creationismonline.com/YEC/Research.xlsm","http://www.creationismonline.com/YEC/Research.xlsm"]
[null,null,null,"http://www.creationismonline.com/YEC/http://www.creationismonline.com/YEC/Research.xlsm","http://www.creationismonline.com/YEC/Research.xlsm"]
[null,null,null,"http://www.creationismonline.com/YEC/http://www.creationismonline.com/YEC/GOOD.xlsm","http://www.creationismonline.com/YEC/GOOD.xlsm"]
[null,null,null,"http://www.creationismonline.com/YEC/http://www.creationismonline.com/YEC/Research.xlsm","http://www.creationismonline.com/YEC/Research.xlsm"]
[null,null,null,"http://www.creationismonline.com/YEC/http://www.creationismonline.com/YEC/Excellent.xlsm","http://www.creationismonline.com/YEC/Excellent.xlsm"]
[null,null,null,"http://www.creationismonline.com/YEC/http://www.creationismonline.com/YEC/Excellent.xlsm","http://www.creationismonline.com/YEC/Excellent.xlsm"]
[null,null,null,"http://www.creationismonline.com/YEC/http://www.creationismonline.com/YEC/Plot_Index.xlsm","http://www.creationismonline.com/YEC/Plot_Index.xlsm"]
[null,null,null,"http://www.creationismonline.com/YEC/http://www.creationismonline.com/YEC/Th-Pb.xlsm","http://www.creationismonline.com/YEC/Th-Pb.xlsm"]
[null,null,null,"http://www.creationismonline.com/YEC/http://www.creationismonline.com/YEC/Research.xlsm","http://www.creationismonline.com/YEC/Research.xlsm"]
[null,null,null,"http://www.creationismonline.com/YEC/http://www.creationismonline.com/YEC/Excellent.xlsm","http://www.creationismonline.com/YEC/Excellent.xlsm"]
[null,null,null,"http://www.creationismonline.com/YEC/http://www.creationismonline.com/YEC/Excellent.xlsm","http://www.creationismonline.com/YEC/Excellent.xlsm"]
[null,null,null,"http://www.creationismonline.com/YEC/http://www.creationismonline.com/YEC/Excellent.xlsm","http://www.creationismonline.com/YEC/Excellent.xlsm"]
[null,null,null,"http://www.creationismonline.com/YEC/http://www.creationismonline.com/YEC/Very_Old_V.xls","http://www.creationismonline.com/YEC/Very_Old_V.xls"]
[null,null,null,"http://www.creationismonline.com/YEC/http://www.creationismonline.com/YEC/Research.xlsm","http://www.creationismonline.com/YEC/Research.xlsm"]
[null,null,null,"http://www.creationismonline.com/YEC/http://www.creationismonline.com/YEC/Rubidium_Strontium_02.xlsm","http://www.creationismonline.com/YEC/Rubidium_Strontium_02.xlsm"]
[null,null,null,"http://www.creationismonline.com/YEC/http://www.creationismonline.com/YEC/Very_Old_B_9.xlsx","http://www.creationismonline.com/YEC/Very_Old_B_9.xlsx"]
[null,null,null,"http://www.creationismonline.com/YEC/http://www.creationismonline.com/YEC/Research.xlsm","http://www.creationismonline.com/YEC/Research.xlsm"]
[null,null,null,"http://www.creationismonline.com/YEC/http://www.creationismonline.com/YEC/Excellent.xlsm","http://www.creationismonline.com/YEC/Excellent.xlsm"]
[null,null,null,"http://www.creationismonline.com/YEC/http://www.creationismonline.com/YEC/Excellent.xlsm","http://www.creationismonline.com/YEC/Excellent.xlsm"]
[null,null,null,"http://www.creationismonline.com/YEC/http://www.creationismonline.com/YEC/Th-Pb.xlsm","http://www.creationismonline.com/YEC/Th-Pb.xlsm"]
[null,null,null,"http://www.creationismonline.com/YEC/http://www.creationismonline.com/YEC/Neodymium_Samarium.xlsm","http://www.creationismonline.com/YEC/Neodymium_Samarium.xlsm"]
[null,null,null,"http://www.creationismonline.com/YEC/http://www.creationismonline.com/YEC/Very_Old_M.xls","http://www.creationismonline.com/YEC/Very_Old_M.xls"]
[null,null,null,"http://www.creationismonline.com/YEC/http://www.creationismonline.com/YEC/Lead_206_207.xlsm","http://www.creationismonline.com/YEC/Lead_206_207.xlsm"]
[null,null,null,"http://www.creationismonline.com/YEC/http://www.creationismonline.com/YEC/Neodymium_Samarium.xlsm","http://www.creationismonline.com/YEC/Neodymium_Samarium.xlsm"]
[null,null,null,"http://www.creationismonline.com/YEC/http://www.creationismonline.com/YEC/Rubidium_Strontium_01.xlsm","http://www.creationismonline.com/YEC/Rubidium_Strontium_01.xlsm"]
[null,null,null,{"$f":"(\"http://www.creationismonline.com/YEC/\" &E435)","v":"http://www.creationismonline.com/YEC/http://www.creationismonline.com/YEC/Excellent.xlsm"},"http://www.creationismonline.com/YEC/Excellent.xlsm"]
[null,null,null,"http://www.creationismonline.com/YEC/http://www.creationismonline.com/YEC/GOOD.xlsm","http://www.creationismonline.com/YEC/GOOD.xlsm"]
[null,null,null,"http://www.creationismonline.com/YEC/http://www.creationismonline.com/YEC/Rubidium_Strontium_01.xlsm","http://www.creationismonline.com/YEC/Rubidium_Strontium_01.xlsm"]
[null,null,null,"http://www.creationismonline.com/YEC/http://www.creationismonline.com/YEC/Neodymium_Samarium.xlsm","http://www.creationismonline.com/YEC/Neodymium_Samarium.xlsm"]
[null,null,null,"http://www.creationismonline.com/YEC/http://www.creationismonline.com/YEC/Rubidium_Strontium_01.xlsm","http://www.creationismonline.com/YEC/Rubidium_Strontium_01.xlsm"]
[null,null,null,"http://www.creationismonline.com/YEC/http://www.creationismonline.com/YEC/Rubidium_Strontium_02.xlsm","http://www.creationismonline.com/YEC/Rubidium_Strontium_02.xlsm"]
[null,null,null,"http://www.creationismonline.com/YEC/http://www.creationismonline.com/YEC/Plot_Index.xlsm","http://www.creationismonline.com/YEC/Plot_Index.xlsm"]
[null,null,null,"http://www.creationismonline.com/YEC/http://www.creationismonline.com/YEC/GOOD.xlsm","http://www.creationismonline.com/YEC/GOOD.xlsm"]
[null,null,null,"http://www.creationismonline.com/YEC/http://www.creationismonline.com/YEC/Excellent.xlsm","http://www.creationismonline.com/YEC/Excellent.xlsm"]
[null,null,null,"http://www.creationismonline.com/YEC/http://www.creationismonline.com/YEC/GOOD.xlsm","http://www.creationismonline.com/YEC/GOOD.xlsm"]
[null,null,null,"http://www.creationismonline.com/YEC/http://www.creationismonline.com/YEC/Rubidium_Strontium_01.xlsm","http://www.creationismonline.com/YEC/Rubidium_Strontium_01.xlsm"]
[null,null,null,"http://www.creationismonline.com/YEC/http://www.creationismonline.com/YEC/Plot_Index.xlsm","http://www.creationismonline.com/YEC/Plot_Index.xlsm"]
[null,null,null,"http://www.creationismonline.com/YEC/http://www.creationismonline.com/YEC/Very_Old_E.xls","http://www.creationismonline.com/YEC/Very_Old_E.xls"]
[null,null,null,"http://www.creationismonline.com/YEC/http://www.creationismonline.com/YEC/Lead_206_207.xlsm","http://www.creationismonline.com/YEC/Lead_206_207.xlsm"]
[null,null,null,"http://www.creationismonline.com/YEC/http://www.creationismonline.com/YEC/Very_Old_D.xls","http://www.creationismonline.com/YEC/Very_Old_D.xls"]
[null,null,null,"http://www.creationismonline.com/YEC/http://www.creationismonline.com/YEC/Lead_206_207.xlsm","http://www.creationismonline.com/YEC/Lead_206_207.xlsm"]
[null,null,null,"http://www.creationismonline.com/YEC/http://www.creationismonline.com/YEC/Excellent.xlsm","http://www.creationismonline.com/YEC/Excellent.xlsm"]
[null,null,null,"http://www.creationismonline.com/YEC/http://www.creationismonline.com/YEC/GOOD.xlsm","http://www.creationismonline.com/YEC/GOOD.xlsm"]
[null,null,null,"http://www.creationismonline.com/YEC/http://www.creationismonline.com/YEC/Very_Old_A_7.xls","http://www.creationismonline.com/YEC/Very_Old_A_7.xls"]
[null,null,null,"http://www.creationismonline.com/YEC/http://www.creationismonline.com/YEC/Plot_Index.xlsm","http://www.creationismonline.com/YEC/Plot_Index.xlsm"]
[null,null,null,"http://www.creationismonline.com/YEC/http://www.creationismonline.com/YEC/Very_Old_A_3.xls","http://www.creationismonline.com/YEC/Very_Old_A_3.xls"]
[null,null,null,"http://www.creationismonline.com/YEC/http://www.creationismonline.com/YEC/Very_Old_B_3.xls","http://www.creationismonline.com/YEC/Very_Old_B_3.xls"]
[null,null,null,"http://www.creationismonline.com/YEC/http://www.creationismonline.com/YEC/Research.xlsm","http://www.creationismonline.com/YEC/Research.xlsm"]
[null,null,null,"http://www.creationismonline.com/YEC/http://www.creationismonline.com/YEC/Th-Pb.xlsm","http://www.creationismonline.com/YEC/Th-Pb.xlsm"]
[null,null,null,"http://www.creationismonline.com/YEC/http://www.creationismonline.com/YEC/Excellent.xlsm","http://www.creationismonline.com/YEC/Excellent.xlsm"]
[null,null,null,"http://www.creationismonline.com/YEC/http://www.creationismonline.com/YEC/Very_Old_C_3.xls","http://www.creationismonline.com/YEC/Very_Old_C_3.xls"]
[null,null,null,"http://www.creationismonline.com/YEC/http://www.creationismonline.com/YEC/Research.xlsm","http://www.creationismonline.com/YEC/Research.xlsm"]
[null,null,null,"http://www.creationismonline.com/YEC/http://www.creationismonline.com/YEC/Very_Old_H.xls","http://www.creationismonline.com/YEC/Very_Old_H.xls"]
[null,null,null,"http://www.creationismonline.com/YEC/http://www.creationismonline.com/YEC/Lead_206_207.xlsm","http://www.creationismonline.com/YEC/Lead_206_207.xlsm"]
[null,null,null,"http://www.creationismonline.com/YEC/http://www.creationismonline.com/YEC/Excellent.xlsm","http://www.creationismonline.com/YEC/Excellent.xlsm"]
[null,null,null,"http://www.creationismonline.com/YEC/http://www.creationismonline.com/YEC/Very_Old_C_4.xls","http://www.creationismonline.com/YEC/Very_Old_C_4.xls"]
[null,null,null,"http://www.creationismonline.com/YEC/http://www.creationismonline.com/YEC/Very_Old_A_2.xls","http://www.creationismonline.com/YEC/Very_Old_A_2.xls"]
[null,null,null,"http://www.creationismonline.com/YEC/http://www.creationismonline.com/YEC/Neodymium_Samarium.xlsm","http://www.creationismonline.com/YEC/Neodymium_Samarium.xlsm"]
[null,null,null,"http://www.creationismonline.com/YEC/http://www.creationismonline.com/YEC/Very_Old_C_2.xls","http://www.creationismonline.com/YEC/Very_Old_C_2.xls"]
[null,null,null,"http://www.creationismonline.com/YEC/http://www.creationismonline.com/YEC/Very_Old_C_1.xls","http://www.creationismonline.com/YEC/Very_Old_C_1.xls"]
[null,null,null,"http://www.creationismonline.com/YEC/http://www.creationismonline.com/YEC/Very_Old_J.xls","http://www.creationismonline.com/YEC/Very_Old_J.xls"]
[null,null,null,"http://www.creationismonline.com/YEC/http://www.creationismonline.com/YEC/Very_Old_A_6.xls","http://www.creationismonline.com/YEC/Very_Old_A_6.xls"]
[null,null,null,"http://www.creationismonline.com/YEC/http://www.creationismonline.com/YEC/Very_Old_B_5.xls","http://www.creationismonline.com/YEC/Very_Old_B_5.xls"]
[null,null,null,"http://www.creationismonline.com/YEC/http://www.creationismonline.com/YEC/Very_Old_R.xls","http://www.creationismonline.com/YEC/Very_Old_R.xls"]
[null,null,null,"http://www.creationismonline.com/YEC/http://www.creationismonline.com/YEC/Very_Old_B_2.xls","http://www.creationismonline.com/YEC/Very_Old_B_2.xls"]
[null,null,null,"http://www.creationismonline.com/YEC/http://www.creationismonline.com/YEC/Very_Old_B_8.xlsx","http://www.creationismonline.com/YEC/Very_Old_B_8.xlsx"]
[null,null,null,"http://www.creationismonline.com/YEC/http://www.creationismonline.com/YEC/Very_Old_Y.xls","http://www.creationismonline.com/YEC/Very_Old_Y.xls"]
[null,null,null,"http://www.creationismonline.com/YEC/http://www.creationismonline.com/YEC/Very_Old_B_7.xls","http://www.creationismonline.com/YEC/Very_Old_B_7.xls"]

{"sheet":"PlotDat2","index":1,"n_rows":81,"n_cols":8,"rows_kept":81,"cut":false,"hidden":true,"merged":[]}
["Source sheet","Plot_08",1.9486000000000001,1.4E-3,0.25129304251593926,0,0.33610000000000001,2.9999999999999997E-4]
["Plot name","PbPlot2",2.2284999999999999,1.9E-3,4.5,6.0183650369106025E-3,0.38109999999999999,3.6361345022489989E-4]
["Plot Type",9,3.54,2.7000000000000001E-3,null,null,0.42609999999999998,4.405298128400012E-4]
["1st free col",9,3.5996999999999999,4.1000000000000003E-3,null,null,0.47109999999999996,5.2586043515878288E-4]
["Sigma Level",1,2.8624000000000001,8.5000000000000006E-3,null,null,0.5161,6.1471666449472396E-4]
["Absolute Errs",true,0.33610000000000001,2.9999999999999997E-4,null,null,0.56110000000000004,7.0220984816130331E-4]
["Symbol Type",12,1.2217,8.9999999999999998E-4,null,null,0.60610000000000008,7.8345133347199969E-4]
["Inverse Plot",true,"IsoLine","IsoLine",null,null,0.65110000000000012,8.5355246774029218E-4]
["Color Plot",true,null,null,null,null,0.69610000000000016,9.0762459827965975E-4]
["3D plot",false,null,null,null,null,0.7411000000000002,9.4077907240358116E-4]
["Linear",false,null,null,null,null,0.78610000000000024,9.4812723742553539E-4]
["Data Range","K3:L9",null,null,null,null,0.83110000000000028,9.2478044065900131E-4]
["Filled Symbols",true,null,null,null,null,0.87610000000000032,8.6585002941745809E-4]
["ConcAge",false,null,null,null,null,0.92110000000000036,7.6644735101438408E-4]
["ConcSwap",false,null,null,null,null,0.9661000000000004,6.2168375276325921E-4]
["1st Symbol-row",1,null,null,null,null,1.0111000000000003,4.2667058197756204E-4]
[null,null,null,null,null,null,1.0561000000000003,1.7651918597077151E-4]
[null,null,null,null,null,null,1.1011000000000002,-1.3365908794363342E-4]
[null,null,null,null,null,null,1.1461000000000001,-5.087528924521738E-4]
[null,null,null,null,null,null,1.1911,-9.5365088024137058E-4]
[null,null,null,null,null,null,1.2217,8.9999999999999998E-4]
[null,null,null,null,null,null,1.2666999999999999,9.6947336796372513E-4]
[null,null,null,null,null,null,1.3116999999999999,1.0304645993032746E-3]
[null,null,null,null,null,null,1.3566999999999998,1.0835810930299242E-3]
[null,null,null,null,null,null,1.4016999999999997,1.1294302481549504E-3]
[null,null,null,null,null,null,1.4466999999999997,1.1686194636896295E-3]
[null,null,null,null,null,null,1.4916999999999996,1.2017561386452374E-3]
[null,null,null,null,null,null,1.5366999999999995,1.2294476720330508E-3]
[null,null,null,null,null,null,1.5816999999999994,1.2523014628643455E-3]
[null,null,null,null,null,null,1.6266999999999994,1.2709249101503979E-3]
[null,null,null,null,null,null,1.6716999999999993,1.285925412902484E-3]
[null,null,null,null,null,null,1.7166999999999992,1.2979103701318802E-3]
[null,null,null,null,null,null,1.7616999999999992,1.3074871808498628E-3]
[null,null,null,null,null,null,1.8066999999999991,1.315263244067708E-3]
[null,null,null,null,null,null,1.851699999999999,1.3218459587966917E-3]
[null,null,null,null,null,null,1.8966999999999989,1.3278427240480904E-3]
[null,null,null,null,null,null,1.9416999999999989,1.3338609388331803E-3]
[null,null,null,null,null,null,1.9486000000000001,1.4E-3]
[null,null,null,null,null,null,1.9936,2.5704346320412946E-3]
[null,null,null,null,null,null,2.0386000000000002,1.5578786438601373E-3]
[null,null,null,null,null,null,2.0836000000000001,-8.2225496392492516E-3]
[null,null,null,null,null,null,2.1286,-3.3355731891992632E-2]
[null,null,null,null,null,null,2.1736,-8.0426549789075763E-2]
[null,null,null,null,null,null,2.2185999999999999,-0.15601988500520442]
[null,null,null,null,null,null,2.2284999999999999,1.9E-3]
[null,null,null,null,null,null,2.2734999999999999,2.0845290441243317E-3]
[null,null,null,null,null,null,2.3184999999999998,2.425529187586482E-3]
[null,null,null,null,null,null,2.3634999999999997,2.9400278822807623E-3]
[null,null,null,null,null,null,2.4084999999999996,3.6450525801014831E-3]
[null,null,null,null,null,null,2.4534999999999996,4.5576307329429555E-3]
[null,null,null,null,null,null,2.4984999999999995,5.6947897926994907E-3]
[null,null,null,null,null,null,2.5434999999999994,7.0735572112654004E-3]
[null,null,null,null,null,null,2.5884999999999994,8.7109604405349941E-3]
[null,null,null,null,null,null,2.6334999999999993,1.0624026932402586E-2]
[null,null,null,null,null,null,2.6784999999999992,1.2829784138762483E-2]
[null,null,null,null,null,null,2.7234999999999991,1.5345259511508998E-2]
[null,null,null,null,null,null,2.7684999999999991,1.8187480502536445E-2]
[null,null,null,null,null,null,2.813499999999999,2.1373474563739132E-2]
[null,null,null,null,null,null,2.8584999999999989,2.4920269147011367E-2]
[null,null,null,null,null,null,2.8624000000000001,8.5000000000000006E-3]
[null,null,null,null,null,null,2.9074,8.6100087028005545E-3]
[null,null,null,null,null,null,2.9523999999999999,8.7143378150009391E-3]
[null,null,null,null,null,null,2.9973999999999998,8.8127593896121011E-3]
[null,null,null,null,null,null,3.0423999999999998,8.905045479644982E-3]
[null,null,null,null,null,null,3.0873999999999997,8.990968138110525E-3]
[null,null,null,null,null,null,3.1323999999999996,9.0702994180196748E-3]
[null,null,null,null,null,null,3.1773999999999996,9.1428113723833748E-3]
[null,null,null,null,null,null,3.2223999999999995,9.2082760542125663E-3]
[null,null,null,null,null,null,3.2673999999999994,9.2664655165181943E-3]
[null,null,null,null,null,null,3.3123999999999993,9.3171518123112019E-3]
[null,null,null,null,null,null,3.3573999999999993,9.3601069946025323E-3]
[null,null,null,null,null,null,3.4023999999999992,9.3951031164031303E-3]
[null,null,null,null,null,null,3.4473999999999991,9.4219122307239358E-3]
[null,null,null,null,null,null,3.4923999999999991,9.4403063905758953E-3]
[null,null,null,null,null,null,3.537399999999999,9.4500576489699502E-3]
[null,null,null,null,null,null,3.54,2.7000000000000001E-3]
[null,null,null,null,null,null,3.5549249999999999,2.7193115363555883E-3]
[null,null,null,null,null,null,3.5698499999999997,2.7377203114238033E-3]
[null,null,null,null,null,null,3.5847749999999996,2.7552570573351133E-3]
[null,null,null,null,null,null,3.5996999999999995,2.7719525062199872E-3]
[null,null,null,null,null,null,"IsoLine","IsoLine"]